Workbook

Sheet 测试与考核情况说明
A1: 2026年4月 业务考核 — 测试与考核情况说明
A2: 4月业务考核车辆中,部分车辆当月存在测试行为(仪表盘里程 > GPS 实际行驶里程),其差额作为测试里程剥离,不参与考核。 对于有测试行为的车辆，使用GPS里程作为实际业务考核里程并参与绩效计算。 对于无测试行为的车辆，使用仪表盘里程(km)作为实际业务考核里程并参与绩效计算 下表数据由公式实时计算,源 sheet 数据更新后会自动刷新。
A3: 一、4月业务考核与测试情况
A4: 项目 | B4: 4月业务考核车辆 | C4: 涉及测试的车辆 | D4: 占比
A5: 考核记录数(条) | B5: =COUNTA('4月业务考核车辆总览'!A2:A2000) -> 449 | C5: =COUNTA(涉及测试的业务考核车辆!A2:A2000) -> 62 | D5: =IFERROR(C5/B5,0) -> 13.8%
A6: 仪表盘里程(km) | B6: =SUM('4月业务考核车辆总览'!O2:O2000) -> 2,126,633.0 | C6: =SUM(涉及测试的业务考核车辆!O2:O2000) -> 580,207.6 | D6: =IFERROR(C6/B6,0) -> 27.3%
A7: 业务考核里程 GPS(km) | B7: =B6-B8 -> 1,720,651.6 | C7: =C6-C8 -> 174,226.2 | D7: =IFERROR(C7/B7,0) -> 10.1%
A8: 测试里程(km) | B8: =SUM(涉及测试的业务考核车辆!Q2:Q2000) -> 405,981.4 | C8: =SUM(涉及测试的业务考核车辆!Q2:Q2000) -> 405,981.4 | D8: =IFERROR(C8/B8,0) -> 100.0%
A10: 二、测试车辆考核达标情况说明
A11: 共62条考核车辆涉及测试；扣减其测试里程后，共 27 条考核车辆记录由“达标”转判为“未达标”，情况如下:
A12: 业务二部 | B12: 核定未达标数量 | C12: 业务三部 | D12: 核定未达标数量 | E12: 业务六部 | F12: 核定未达标数量
A13: 尚建华 | B13: 6 | C13: 金可鹏 | D13: 4 | E13: 岑彦 | F13: 1
A14: 刘念念 | B14: 6
A15: 董剑煜 | B15: 6
A16: 谯云 | B16: 1
A17: 赵连飞 | B17: 3
A19: 三、里程三列数据来源说明
A20: 列 | B20: 字段名 | C20: 数据来源 | D20: 说明
A21: O | B21: 仪表盘里程(km) | C21: 车辆 T-Box / 仪表盘读数 | D21: 当月仪表跑过的总里程,反映车辆物理累计行驶(含运营+测试+调试)。
A22: P | B22: GPS 行驶里程(km) | C22: GPS 轨迹还原 | D22: 基于 GPS 定位轨迹计算的实际运营里程,作为本月里程考核口径。
A23: Q | B23: 测试里程(km) | C23: O − P (取差额) | D23: 仪表跑了但 GPS 未记录到的部分,判定为厂内测试/调试/路试等非运营里程,不计入考核。

Sheet 涉及测试的业务考核车辆
A1: 车牌号 | B1: 考核年份 | C1: 考核月份 | D1: 部门名称 | E1: 销售经理 | F1: 客户名称 | G1: 合同编号 | H1: 项目名称 | I1: 考核目标ID | J1: 考核目标 | K1: 考核开始日期 | L1: 考核结束日期 | M1: 考核天数 | N1: 应考核里程(km) | O1: 仪表盘里程(km) | P1: GPS行驶里程(km) | Q1: 测试里程(km) | R1: 完成率(%) | S1: 是否达标 | T1: 考核状态 | U1: 交车日期 | V1: 预计还车日期 | W1: 实际还车日期
A2: 粤AGP3486 | B2: 2026 | C2: 4 | D2: 业务二部 | E2: 尚建华 | F2: 新疆佳淇信息科技有限公司 | G2: LNZLHT 20260317001 | H2: 新疆佳淇租赁4.5T*3 | I2: 3 | J2: 羚牛136辆4.5T冷链车 | K2: 2026-04-01 | L2: 2026-04-30 | M2: 30 | N2: 5000 | O2: 8838.2 | P2: 4143 | Q2: 4695.2 | R2: 82.86 | S2: 未达标 | T2: 进行中 | U2: 2026-03-29
A3: 粤AGP3617 | B3: 2026 | C3: 4 | D3: 业务二部 | E3: 尚建华 | F3: 新疆佳淇信息科技有限公司 | G3: LNZLHT 20260317001 | H3: 新疆佳淇租赁4.5T*3 | I3: 3 | J3: 羚牛136辆4.5T冷链车 | K3: 2026-04-01 | L3: 2026-04-30 | M3: 30 | N3: 5000 | O3: 8157.2 | P3: 3592.1 | Q3: 4565.1 | R3: 71.84 | S3: 未达标 | T3: 进行中 | U3: 2026-03-29
A4: 粤AGP4318 | B4: 2026 | C4: 4 | D4: 业务二部 | E4: 尚建华 | F4: 嘉兴益顺冷链物流有限公司 | G4: 20250801001 | H4: 嘉兴益顺4.5T物流业务 | I4: 3 | J4: 羚牛136辆4.5T冷链车 | K4: 2026-04-01 | L4: 2026-04-30 | M4: 30 | N4: 5000 | O4: 11772.1 | P4: 11481 | Q4: 291.1 | R4: 229.62 | S4: 达标 | T4: 进行中 | U4: 2025-12-08
A5: 粤AGP4321 | B5: 2026 | C5: 4 | D5: 业务二部 | E5: 尚建华 | F5: 嘉兴益顺冷链物流有限公司 | G5: 20250801001 | H5: 嘉兴益顺4.5T物流业务 | I5: 3 | J5: 羚牛136辆4.5T冷链车 | K5: 2026-04-01 | L5: 2026-04-30 | M5: 30 | N5: 5000 | O5: 12033 | P5: 11933.9 | Q5: 99.1 | R5: 238.68 | S5: 达标 | T5: 进行中 | U5: 2025-11-27
A6: 粤AGP4377 | B6: 2026 | C6: 4 | D6: 业务二部 | E6: 尚建华 | F6: 嘉兴益顺冷链物流有限公司 | G6: 20250801001 | H6: 嘉兴益顺4.5T物流业务 | I6: 3 | J6: 羚牛136辆4.5T冷链车 | K6: 2026-04-01 | L6: 2026-04-30 | M6: 30 | N6: 5000 | O6: 19750.5 | P6: 1782.5 | Q6: 17968 | R6: 35.65 | S6: 未达标 | T6: 进行中 | U6: 2026-02-27
A7: 粤AGP5643 | B7: 2026 | C7: 4 | D7: 业务二部 | E7: 尚建华 | F7: 新疆中铁黑豹物流有限公司 | G7: LNZLHT2024090201 | H7: 新疆中铁黑豹租赁-跃进4.5T*10 | I7: 3 | J7: 羚牛136辆4.5T冷链车 | K7: 2026-04-01 | L7: 2026-04-30 | M7: 30 | N7: 5000 | O7: 6364.7 | P7: 3701.7 | Q7: 2663 | R7: 74.03 | S7: 未达标 | T7: 进行中 | U7: 2025-11-26
A8: 粤AGP5711 | B8: 2026 | C8: 4 | D8: 业务二部 | E8: 尚建华 | F8: 黑龙江圣合商贸有限公司新疆分公司 | G8: LNZLHT 20260414002 | H8: 黑龙江圣和商贸租赁4.5T*1 | I8: 3 | J8: 羚牛136辆4.5T冷链车 | K8: 2026-04-23 | L8: 2026-04-30 | M8: 8 | N8: 1333.33 | O8: 11502.5 | P8: 316.9 | Q8: 11185.6 | R8: 23.77 | S8: 未达标 | T8: 进行中 | U8: 2026-04-23
A9: 粤AGP5711 | B9: 2026 | C9: 4 | D9: 业务二部 | E9: 尚建华 | F9: 新疆中铁黑豹物流有限公司 | G9: LNZLHT2024090201 | H9: 新疆中铁黑豹租赁-跃进4.5T*10 | I9: 3 | J9: 羚牛136辆4.5T冷链车 | K9: 2026-04-01 | L9: 2026-04-10 | M9: 10 | N9: 1666.67 | O9: 0.2 | P9: 0.2 | Q9: 0 | R9: 0.01 | S9: 未达标 | T9: 已完成 | U9: 2025-11-28
A10: 粤AGP5791 | B10: 2026 | C10: 4 | D10: 业务二部 | E10: 尚建华 | F10: 新疆中铁黑豹物流有限公司 | G10: LNZLHT2024090201 | H10: 新疆中铁黑豹租赁-跃进4.5T*10 | I10: 3 | J10: 羚牛136辆4.5T冷链车 | K10: 2026-04-01 | L10: 2026-04-30 | M10: 30 | N10: 5000 | O10: 14526.2 | P10: 5283.4 | Q10: 9242.8 | R10: 105.67 | S10: 达标 | T10: 进行中 | U10: 2025-11-06
A11: 粤AGP9753 | B11: 2026 | C11: 4 | D11: 业务二部 | E11: 尚建华 | F11: 羚牛氢能-物流中心 | G11: JXLN-23-037 | H11: 物流自运营-金小悦 | I11: 3 | J11: 羚牛136辆4.5T冷链车 | K11: 2026-04-01 | L11: 2026-04-30 | M11: 30 | N11: 5000 | O11: 21517.1 | P11: 4202.9 | Q11: 17314.2 | R11: 84.06 | S11: 未达标 | T11: 进行中 | U11: 2025-11-20
A12: 粤AGP3078 | B12: 2026 | C12: 4 | D12: 业务二部 | E12: 刘念念 | F12: 浙江洋开供应链管理有限公司 | G12: 20251215001 | H12: 古茗自运营业务 | I12: 3 | J12: 羚牛136辆4.5T冷链车 | K12: 2026-04-01 | L12: 2026-04-30 | M12: 30 | N12: 5000 | O12: 29583.3 | P12: 2426 | Q12: 27157.3 | R12: 48.52 | S12: 未达标 | T12: 进行中 | U12: 2025-12-04
A13: 粤AGP3079 | B13: 2026 | C13: 4 | D13: 业务二部 | E13: 刘念念 | F13: 浙江洋开供应链管理有限公司 | G13: 20251215001 | H13: 古茗自运营业务 | I13: 3 | J13: 羚牛136辆4.5T冷链车 | K13: 2026-04-01 | L13: 2026-04-30 | M13: 30 | N13: 5000 | O13: 26058.1 | P13: 1539.1 | Q13: 24519 | R13: 30.78 | S13: 未达标 | T13: 进行中 | U13: 2025-12-04
A14: 粤AGP3515 | B14: 2026 | C14: 4 | D14: 业务二部 | E14: 刘念念 | F14: 昆山毅通麦物流科技有限公司 | G14: LNZLHT 20251105001 | H14: 昆山毅通麦4.5T租赁*2 | I14: 3 | J14: 羚牛136辆4.5T冷链车 | K14: 2026-04-01 | L14: 2026-04-13 | M14: 13 | N14: 2166.67 | O14: 927.8 | P14: 95.5 | Q14: 832.3 | R14: 4.41 | S14: 未达标 | T14: 已完成 | U14: 2025-11-05
A15: 粤AGP3607 | B15: 2026 | C15: 4 | D15: 业务二部 | E15: 刘念念 | F15: 浙江洋开供应链管理有限公司 | G15: 20251215001 | H15: 古茗自运营业务 | I15: 3 | J15: 羚牛136辆4.5T冷链车 | K15: 2026-04-01 | L15: 2026-04-30 | M15: 30 | N15: 5000 | O15: 31808.4 | P15: 1911.3 | Q15: 29897.1 | R15: 38.23 | S15: 未达标 | T15: 进行中 | U15: 2025-12-04
A16: 粤AGP3612 | B16: 2026 | C16: 4 | D16: 业务二部 | E16: 刘念念 | F16: 浙江洋开供应链管理有限公司 | G16: 20251215001 | H16: 古茗自运营业务 | I16: 3 | J16: 羚牛136辆4.5T冷链车 | K16: 2026-04-01 | L16: 2026-04-30 | M16: 30 | N16: 5000 | O16: 11796.9 | P16: 9545.3 | Q16: 2251.6 | R16: 190.91 | S16: 达标 | T16: 进行中 | U16: 2025-12-04
A17: 粤AGP3659 | B17: 2026 | C17: 4 | D17: 业务二部 | E17: 刘念念 | F17: 浙江洋开供应链管理有限公司 | G17: 20251215001 | H17: 古茗自运营业务 | I17: 3 | J17: 羚牛136辆4.5T冷链车 | K17: 2026-04-01 | L17: 2026-04-30 | M17: 30 | N17: 5000 | O17: 25376.1 | P17: 280.8 | Q17: 25095.3 | R17: 5.62 | S17: 未达标 | T17: 进行中 | U17: 2025-12-04
A18: 粤AGP3690 | B18: 2026 | C18: 4 | D18: 业务二部 | E18: 刘念念 | F18: 桐乡市丰韵快递有限责任公司 | G18: LNZLHT 20260104001 | H18: 桐乡韵达租赁4.5T*10 | I18: 3 | J18: 羚牛136辆4.5T冷链车 | K18: 2026-04-01 | L18: 2026-04-13 | M18: 13 | N18: 2166.67 | O18: 508.6 | P18: 550.9 | Q18: - | R18: 25.43 | S18: 未达标 | T18: 已完成 | U18: 2026-01-16
A19: 粤AGP4335 | B19: 2026 | C19: 4 | D19: 业务二部 | E19: 刘念念 | F19: 昆山毅通麦物流科技有限公司 | G19: LNZLHT 20251105001 | H19: 昆山毅通麦4.5T租赁*2 | I19: 3 | J19: 羚牛136辆4.5T冷链车 | K19: 2026-04-01 | L19: 2026-04-04 | M19: 4 | N19: 666.67 | O19: 307.3 | P19: 303.7 | Q19: 3.6 | R19: 45.55 | S19: 未达标 | T19: 已完成 | U19: 2026-01-31
A20: 粤AGP4597 | B20: 2026 | C20: 4 | D20: 业务二部 | E20: 刘念念 | F20: 平湖市易皓服装经营部 | G20: LNZLHT 20251101001 | H20: 平湖（港区京东）租赁4.5T*1 | I20: 3 | J20: 羚牛136辆4.5T冷链车 | K20: 2026-04-01 | L20: 2026-04-03 | M20: 3 | N20: 500 | O20: 54.3 | P20: 54.5 | Q20: - | R20: 10.9 | S20: 未达标 | T20: 已完成 | U20: 2025-11-03
A21: 粤AGP5379 | B21: 2026 | C21: 4 | D21: 业务二部 | E21: 刘念念 | F21: 浙江洋开供应链管理有限公司 | G21: 20251215001 | H21: 古茗自运营业务 | I21: 3 | J21: 羚牛136辆4.5T冷链车 | K21: 2026-04-01 | L21: 2026-04-30 | M21: 30 | N21: 5000 | O21: 11001.7 | P21: 8365 | Q21: 2636.7 | R21: 167.3 | S21: 达标 | T21: 进行中 | U21: 2025-12-04
A22: 粤AGP5622 | B22: 2026 | C22: 4 | D22: 业务二部 | E22: 刘念念 | F22: 浙江洋开供应链管理有限公司 | G22: 20250815001 | H22: 万维自运营业务4.5T*15 | I22: 3 | J22: 羚牛136辆4.5T冷链车 | K22: 2026-04-01 | L22: 2026-04-30 | M22: 30 | N22: 5000 | O22: 7437.9 | P22: 3471 | Q22: 3966.9 | R22: 69.42 | S22: 未达标 | T22: 进行中 | U22: 2025-12-21
A23: 粤AGP5769 | B23: 2026 | C23: 4 | D23: 业务二部 | E23: 刘念念 | F23: 昆山毅通麦物流科技有限公司 | G23: LNZLHT20250926001- | H23: 昆山毅通麦4.5T租赁*8 | I23: 3 | J23: 羚牛136辆4.5T冷链车 | K23: 2026-04-01 | L23: 2026-04-30 | M23: 30 | N23: 5000 | O23: 15581.3 | P23: 15377.2 | Q23: 204.1 | R23: 307.54 | S23: 达标 | T23: 已完成 | U23: 2026-01-31
A24: 粤AGP7026 | B24: 2026 | C24: 4 | D24: 业务二部 | E24: 刘念念 | F24: 浙江洋开供应链管理有限公司 | G24: 20250815001 | H24: 万维自运营业务4.5T*15 | I24: 3 | J24: 羚牛136辆4.5T冷链车 | K24: 2026-04-01 | L24: 2026-04-30 | M24: 30 | N24: 5000 | O24: 27211.9 | P24: 1823.4 | Q24: 25388.5 | R24: 36.47 | S24: 未达标 | T24: 进行中 | U24: 2025-12-01
A25: 粤AGP3506 | B25: 2026 | C25: 4 | D25: 业务二部 | E25: 谯云 | F25: 上海明纳物流有限公司 | G25: 20251127001 | H25: 常熟明纳自运营项目 | I25: 3 | J25: 羚牛136辆4.5T冷链车 | K25: 2026-04-07 | L25: 2026-04-30 | M25: 24 | N25: 4000 | O25: 19006.7 | P25: 4245.6 | Q25: 14761.1 | R25: 106.14 | S25: 达标 | T25: 进行中 | U25: 2026-04-07
A26: 粤AGP4597 | B26: 2026 | C26: 4 | D26: 业务二部 | E26: 谯云 | F26: 上海明纳物流有限公司 | G26: 20251127001 | H26: 常熟明纳自运营项目 | I26: 3 | J26: 羚牛136辆4.5T冷链车 | K26: 2026-04-04 | L26: 2026-04-30 | M26: 27 | N26: 4500 | O26: 22352.4 | P26: 2304.4 | Q26: 20048 | R26: 51.21 | S26: 未达标 | T26: 进行中 | U26: 2026-04-04
A27: 粤AGP5760 | B27: 2026 | C27: 4 | D27: 业务二部 | E27: 谯云 | F27: 上海明纳物流有限公司 | G27: 20251127001 | H27: 常熟明纳自运营项目 | I27: 3 | J27: 羚牛136辆4.5T冷链车 | K27: 2026-04-07 | L27: 2026-04-30 | M27: 24 | N27: 4000 | O27: 6559 | P27: 5828.4 | Q27: 730.6 | R27: 145.71 | S27: 达标 | T27: 进行中 | U27: 2026-04-07
A28: 粤AGP3625 | B28: 2026 | C28: 4 | D28: 业务二部 | E28: 赵连飞 | F28: 嘉兴市飞宇物流有限公司 | G28: LNZLHT 20251028001 | H28: 嘉兴飞宇租赁4.5T*4 | I28: 3 | J28: 羚牛136辆4.5T冷链车 | K28: 2026-04-12 | L28: 2026-04-30 | M28: 19 | N28: 3166.67 | O28: 9182.6 | P28: 8442.9 | Q28: 739.7 | R28: 266.62 | S28: 达标 | T28: 进行中 | U28: 2026-04-12
A29: 粤AGP4583 | B29: 2026 | C29: 4 | D29: 业务二部 | E29: 赵连飞 | F29: 上海子初供应链管理有限公司 | G29: LNZLHT 20260423001 | H29: 上海子初租赁4.5T*4 | I29: 3 | J29: 羚牛136辆4.5T冷链车 | K29: 2026-04-26 | L29: 2026-04-30 | M29: 5 | N29: 833.33 | O29: 1279.5 | P29: 604.4 | Q29: 675.1 | R29: 72.53 | S29: 未达标 | T29: 进行中 | U29: 2026-04-26
A30: 粤AGP5712 | B30: 2026 | C30: 4 | D30: 业务二部 | E30: 赵连飞 | F30: 上海子初供应链管理有限公司 | G30: LNZLHT 20260423001 | H30: 上海子初租赁4.5T*4 | I30: 3 | J30: 羚牛136辆4.5T冷链车 | K30: 2026-04-26 | L30: 2026-04-30 | M30: 5 | N30: 833.33 | O30: 1290.7 | P30: 773.2 | Q30: 517.5 | R30: 92.78 | S30: 未达标 | T30: 进行中 | U30: 2026-04-26
A31: 粤AGP5763 | B31: 2026 | C31: 4 | D31: 业务二部 | E31: 赵连飞 | F31: 嘉兴市飞宇物流有限公司 | G31: LNZLHT 20251028001 | H31: 嘉兴飞宇租赁4.5T*4 | I31: 3 | J31: 羚牛136辆4.5T冷链车 | K31: 2026-04-01 | L31: 2026-04-12 | M31: 12 | N31: 2000 | O31: 20.5 | P31: 20.7 | Q31: - | R31: 1.03 | S31: 未达标 | T31: 已完成 | U31: 2026-02-25
A32: 粤AGP9759 | B32: 2026 | C32: 4 | D32: 业务二部 | E32: 赵连飞 | F32: 上海子初供应链管理有限公司 | G32: LNZLHT 20260423001 | H32: 上海子初租赁4.5T*4 | I32: 3 | J32: 羚牛136辆4.5T冷链车 | K32: 2026-04-26 | L32: 2026-04-30 | M32: 5 | N32: 833.33 | O32: 1038.5 | P32: 168.2 | Q32: 870.3 | R32: 20.18 | S32: 未达标 | T32: 进行中 | U32: 2026-04-26
A33: 粤AGP3513 | B33: 2026 | C33: 4 | D33: 业务二部 | E33: 董剑煜 | F33: 无锡铭康物流有限公司-1 | G33: 20260316001 | H33: 余姚盒马自运营4.5T*40 | I33: 3 | J33: 羚牛136辆4.5T冷链车 | K33: 2026-04-01 | L33: 2026-04-30 | M33: 30 | N33: 5000 | O33: 24073.6 | P33: 295.1 | Q33: 23778.5 | R33: 5.9 | S33: 未达标 | T33: 进行中 | U33: 2026-03-06
A34: 粤AGP3605 | B34: 2026 | C34: 4 | D34: 业务二部 | E34: 董剑煜 | F34: 无锡铭康物流有限公司-1 | G34: 20260316001 | H34: 余姚盒马自运营4.5T*40 | I34: 3 | J34: 羚牛136辆4.5T冷链车 | K34: 2026-04-01 | L34: 2026-04-30 | M34: 30 | N34: 5000 | O34: 25236.6 | P34: 2349.7 | Q34: 22886.9 | R34: 46.99 | S34: 未达标 | T34: 进行中 | U34: 2026-03-06
A35: 粤AGP3695 | B35: 2026 | C35: 4 | D35: 业务二部 | E35: 董剑煜 | F35: 无锡铭康物流有限公司-1 | G35: 20260316001 | H35: 余姚盒马自运营4.5T*40 | I35: 3 | J35: 羚牛136辆4.5T冷链车 | K35: 2026-04-01 | L35: 2026-04-30 | M35: 30 | N35: 5000 | O35: 10291.1 | P35: 5708.2 | Q35: 4582.9 | R35: 114.16 | S35: 达标 | T35: 进行中 | U35: 2026-03-06
A36: 粤AGP4355 | B36: 2026 | C36: 4 | D36: 业务二部 | E36: 董剑煜 | F36: 无锡铭康物流有限公司-1 | G36: 20260316001 | H36: 余姚盒马自运营4.5T*40 | I36: 3 | J36: 羚牛136辆4.5T冷链车 | K36: 2026-04-01 | L36: 2026-04-30 | M36: 30 | N36: 5000 | O36: 10794.2 | P36: 5991.7 | Q36: 4802.5 | R36: 119.83 | S36: 达标 | T36: 进行中 | U36: 2026-03-17
A37: 粤AGP4548 | B37: 2026 | C37: 4 | D37: 业务二部 | E37: 董剑煜 | F37: 无锡铭康物流有限公司-1 | G37: 20260316001 | H37: 余姚盒马自运营4.5T*40 | I37: 3 | J37: 羚牛136辆4.5T冷链车 | K37: 2026-04-01 | L37: 2026-04-30 | M37: 30 | N37: 5000 | O37: 27364.4 | P37: 545 | Q37: 26819.4 | R37: 10.9 | S37: 未达标 | T37: 进行中 | U37: 2026-03-06
A38: 粤AGP4586 | B38: 2026 | C38: 4 | D38: 业务二部 | E38: 董剑煜 | F38: 无锡铭康物流有限公司 | G38: 20260119001 | H38: 杭州盒马自运营4.5T*10 | I38: 3 | J38: 羚牛136辆4.5T冷链车 | K38: 2026-04-01 | L38: 2026-04-30 | M38: 30 | N38: 5000 | O38: 12661.7 | P38: 12439.8 | Q38: 221.9 | R38: 248.8 | S38: 达标 | T38: 进行中 | U38: 2026-02-05
A39: 粤AGP5351 | B39: 2026 | C39: 4 | D39: 业务二部 | E39: 董剑煜 | F39: 无锡铭康物流有限公司-1 | G39: 20260316001 | H39: 余姚盒马自运营4.5T*40 | I39: 3 | J39: 羚牛136辆4.5T冷链车 | K39: 2026-04-01 | L39: 2026-04-30 | M39: 30 | N39: 5000 | O39: 20530.4 | P39: 3525.1 | Q39: 17005.3 | R39: 70.5 | S39: 未达标 | T39: 进行中 | U39: 2026-03-06
A40: 粤AGP5357 | B40: 2026 | C40: 4 | D40: 业务二部 | E40: 董剑煜 | F40: 无锡铭康物流有限公司-1 | G40: 20260316001 | H40: 余姚盒马自运营4.5T*40 | I40: 3 | J40: 羚牛136辆4.5T冷链车 | K40: 2026-04-01 | L40: 2026-04-30 | M40: 30 | N40: 5000 | O40: 27722.4 | P40: 1614.7 | Q40: 26107.7 | R40: 32.29 | S40: 未达标 | T40: 进行中 | U40: 2026-03-16
A41: 粤AGP9791 | B41: 2026 | C41: 4 | D41: 业务二部 | E41: 董剑煜 | F41: 无锡铭康物流有限公司-1 | G41: 20260316001 | H41: 余姚盒马自运营4.5T*40 | I41: 3 | J41: 羚牛136辆4.5T冷链车 | K41: 2026-04-01 | L41: 2026-04-30 | M41: 30 | N41: 5000 | O41: 11811.6 | P41: 4158.7 | Q41: 7652.9 | R41: 83.17 | S41: 未达标 | T41: 进行中 | U41: 2026-03-14
A42: 粤AGP2009 | B42: 2026 | C42: 4 | D42: 业务三部 | E42: 金可鹏 | F42: 广州新运多租赁有限公司 | G42: LNZLHT2026042403-042 | H42: 新运多-租赁4.5T*10 | I42: 3 | J42: 羚牛136辆4.5T冷链车 | K42: 2026-04-25 | L42: 2026-04-30 | M42: 6 | N42: 1000 | O42: 966.3 | P42: 453.9 | Q42: 512.4 | R42: 45.39 | S42: 未达标 | T42: 进行中 | U42: 2026-04-25
A43: 粤AGP3082 | B43: 2026 | C43: 4 | D43: 业务三部 | E43: 金可鹏 | F43: 武汉洛安供应链有限公司 | G43: LNZLHT2026040301-042 | H43: 洛安供应链-租赁帕力安4.5T*30 | I43: 3 | J43: 羚牛136辆4.5T冷链车 | K43: 2026-04-08 | L43: 2026-04-30 | M43: 23 | N43: 3833.33 | O43: 8640.3 | P43: 3242 | Q43: 5398.3 | R43: 84.57 | S43: 未达标 | T43: 进行中 | U43: 2026-04-08
A44: 粤AGP3087 | B44: 2026 | C44: 4 | D44: 业务三部 | E44: 金可鹏 | F44: 武汉洛安供应链有限公司 | G44: LNZLHT2026040301-042 | H44: 洛安供应链-租赁帕力安4.5T*30 | I44: 3 | J44: 羚牛136辆4.5T冷链车 | K44: 2026-04-20 | L44: 2026-04-30 | M44: 11 | N44: 1833.33 | O44: 3258.7 | P44: 2299.3 | Q44: 959.4 | R44: 125.42 | S44: 达标 | T44: 进行中 | U44: 2026-04-20
A45: 粤AGP3505 | B45: 2026 | C45: 4 | D45: 业务三部 | E45: 金可鹏 | F45: 武汉洛安供应链有限公司 | G45: LNZLHT2026040301-042 | H45: 洛安供应链-租赁帕力安4.5T*30 | I45: 3 | J45: 羚牛136辆4.5T冷链车 | K45: 2026-04-08 | L45: 2026-04-30 | M45: 23 | N45: 3833.33 | O45: 2515.5 | P45: 1822.2 | Q45: 693.3 | R45: 47.54 | S45: 未达标 | T45: 进行中 | U45: 2026-04-08
A46: 粤AGP3509 | B46: 2026 | C46: 4 | D46: 业务三部 | E46: 金可鹏 | F46: 武汉洛安供应链有限公司 | G46: LNZLHT2026040301-042 | H46: 洛安供应链-租赁帕力安4.5T*30 | I46: 3 | J46: 羚牛136辆4.5T冷链车 | K46: 2026-04-01 | L46: 2026-04-30 | M46: 30 | N46: 5000 | O46: 1162.2 | P46: 1143.1 | Q46: 19.1 | R46: 22.86 | S46: 未达标 | T46: 进行中 | U46: 2026-03-15
A47: 粤AGP3631 | B47: 2026 | C47: 4 | D47: 业务三部 | E47: 金可鹏 | F47: 武汉洛安供应链有限公司 | G47: LNZLHT2026040301-042 | H47: 洛安供应链-租赁帕力安4.5T*30 | I47: 3 | J47: 羚牛136辆4.5T冷链车 | K47: 2026-04-08 | L47: 2026-04-30 | M47: 23 | N47: 3833.33 | O47: 8495.8 | P47: 3334.3 | Q47: 5161.5 | R47: 86.98 | S47: 未达标 | T47: 进行中 | U47: 2026-04-08
A48: 粤AGP3631 | B48: 2026 | C48: 4 | D48: 业务三部 | E48: 金可鹏 | F48: 深圳市明浩货运代理有限公司 | G48: LNZLHT20251123149001 | H48: 明浩货运-租赁帕力安4.5T | I48: 3 | J48: 羚牛136辆4.5T冷链车 | K48: 2026-04-01 | L48: 2026-04-02 | M48: 2 | N48: 333.33 | O48: 93.2 | P48: 92.3 | Q48: 0.9 | R48: 27.69 | S48: 未达标 | T48: 已完成 | U48: 2025-11-24
A49: 粤AGP3660 | B49: 2026 | C49: 4 | D49: 业务三部 | E49: 金可鹏 | F49: 广州市德利新隆生鲜食品有限公司 | G49: LNZLHT20260108-5042 | H49: 德利新隆生鲜-租赁帕力安4.5T | I49: 3 | J49: 羚牛136辆4.5T冷链车 | K49: 2026-04-29 | L49: 2026-04-30 | M49: 2 | N49: 333.33 | O49: 99 | P49: 97.4 | Q49: 1.6 | R49: 29.22 | S49: 未达标 | T49: 进行中 | U49: 2026-04-29
A50: 粤AGP3673 | B50: 2026 | C50: 4 | D50: 业务三部 | E50: 金可鹏 | F50: 武汉洛安供应链有限公司 | G50: LNZLHT2026040301-042 | H50: 洛安供应链-租赁帕力安4.5T*30 | I50: 3 | J50: 羚牛136辆4.5T冷链车 | K50: 2026-04-08 | L50: 2026-04-30 | M50: 23 | N50: 3833.33 | O50: 2110.5 | P50: 1002.2 | Q50: 1108.3 | R50: 26.14 | S50: 未达标 | T50: 进行中 | U50: 2026-04-08
A51: 粤AGP4396 | B51: 2026 | C51: 4 | D51: 业务三部 | E51: 金可鹏 | F51: 武汉洛安供应链有限公司 | G51: LNZLHT2026040301-042 | H51: 洛安供应链-租赁帕力安4.5T*30 | I51: 3 | J51: 羚牛136辆4.5T冷链车 | K51: 2026-04-08 | L51: 2026-04-30 | M51: 23 | N51: 3833.33 | O51: 3919.4 | P51: 1949.2 | Q51: 1970.2 | R51: 50.85 | S51: 未达标 | T51: 进行中 | U51: 2026-04-08
A52: 粤AGP4587 | B52: 2026 | C52: 4 | D52: 业务三部 | E52: 金可鹏 | F52: 武汉洛安供应链有限公司 | G52: LNZLHT2026040301-042 | H52: 洛安供应链-租赁帕力安4.5T*30 | I52: 3 | J52: 羚牛136辆4.5T冷链车 | K52: 2026-04-20 | L52: 2026-04-30 | M52: 11 | N52: 1833.33 | O52: 2307 | P52: 2444.1 | Q52: - | R52: 133.31 | S52: 达标 | T52: 进行中 | U52: 2026-04-20
A53: 粤AGP5363 | B53: 2026 | C53: 4 | D53: 业务三部 | E53: 金可鹏 | F53: 深圳市明浩货运代理有限公司 | G53: LNZLHT20251123149001 | H53: 明浩货运-租赁帕力安4.5T | I53: 3 | J53: 羚牛136辆4.5T冷链车 | K53: 2026-04-01 | L53: 2026-04-02 | M53: 2 | N53: 333.33 | O53: 57.2 | P53: 65.3 | Q53: - | R53: 19.59 | S53: 未达标 | T53: 已完成 | U53: 2025-11-24
A54: 粤AGP5613 | B54: 2026 | C54: 4 | D54: 业务三部 | E54: 金可鹏 | F54: 广州新运多租赁有限公司 | G54: LNZLHT2026042403-042 | H54: 新运多-租赁4.5T*10 | I54: 3 | J54: 羚牛136辆4.5T冷链车 | K54: 2026-04-25 | L54: 2026-04-30 | M54: 6 | N54: 1000 | O54: 255.7 | P54: 205.3 | Q54: 50.4 | R54: 20.53 | S54: 未达标 | T54: 进行中 | U54: 2026-04-25
A55: 粤AGP5621 | B55: 2026 | C55: 4 | D55: 业务三部 | E55: 金可鹏 | F55: 武汉洛安供应链有限公司 | G55: LNZLHT2026040301-042 | H55: 洛安供应链-租赁帕力安4.5T*30 | I55: 3 | J55: 羚牛136辆4.5T冷链车 | K55: 2026-04-20 | L55: 2026-04-30 | M55: 11 | N55: 1833.33 | O55: 3435.1 | P55: 2314 | Q55: 1121.1 | R55: 126.22 | S55: 达标 | T55: 进行中 | U55: 2026-04-20
A56: 粤AGP7019 | B56: 2026 | C56: 4 | D56: 业务三部 | E56: 金可鹏 | F56: 武汉洛安供应链有限公司 | G56: LNZLHT2026040301-042 | H56: 洛安供应链-租赁帕力安4.5T*30 | I56: 3 | J56: 羚牛136辆4.5T冷链车 | K56: 2026-04-08 | L56: 2026-04-30 | M56: 23 | N56: 3833.33 | O56: 7181.5 | P56: 1134.2 | Q56: 6047.3 | R56: 29.59 | S56: 未达标 | T56: 进行中 | U56: 2026-04-08
A57: 粤AGP7019 | B57: 2026 | C57: 4 | D57: 业务三部 | E57: 金可鹏 | F57: 深圳市明浩货运代理有限公司 | G57: LNZLHT20251123149001 | H57: 明浩货运-租赁帕力安4.5T | I57: 3 | J57: 羚牛136辆4.5T冷链车 | K57: 2026-04-01 | L57: 2026-04-02 | M57: 2 | N57: 333.33 | O57: 104.1 | P57: 91.6 | Q57: 12.5 | R57: 27.48 | S57: 未达标 | T57: 已完成 | U57: 2025-11-24
A58: 粤AGP9351 | B58: 2026 | C58: 4 | D58: 业务三部 | E58: 金可鹏 | F58: 广州新运多租赁有限公司 | G58: LNZLHT2026042403-042 | H58: 新运多-租赁4.5T*10 | I58: 3 | J58: 羚牛136辆4.5T冷链车 | K58: 2026-04-25 | L58: 2026-04-30 | M58: 6 | N58: 1000 | O58: 391.3 | P58: 394.1 | Q58: - | R58: 39.41 | S58: 未达标 | T58: 进行中 | U58: 2026-04-25
A59: 粤AGP9726 | B59: 2026 | C59: 4 | D59: 业务三部 | E59: 金可鹏 | F59: 广州新运多租赁有限公司 | G59: LNZLHT2026042403-042 | H59: 新运多-租赁4.5T*10 | I59: 3 | J59: 羚牛136辆4.5T冷链车 | K59: 2026-04-26 | L59: 2026-04-30 | M59: 5 | N59: 833.33 | O59: 632.8 | P59: 647.9 | Q59: - | R59: 77.75 | S59: 未达标 | T59: 进行中 | U59: 2026-04-26
A60: 粤AGP9731 | B60: 2026 | C60: 4 | D60: 业务三部 | E60: 金可鹏 | F60: 深圳市明浩货运代理有限公司 | G60: LNZLHT20251123149001 | H60: 明浩货运-租赁帕力安4.5T | I60: 3 | J60: 羚牛136辆4.5T冷链车 | K60: 2026-04-01 | L60: 2026-04-02 | M60: 2 | N60: 333.33 | O60: 70.9 | P60: 71.4 | Q60: - | R60: 21.42 | S60: 未达标 | T60: 已完成 | U60: 2025-11-24
A61: 粤AGP2032 | B61: 2026 | C61: 4 | D61: 业务六部 | E61: 钟祥 | F61: 佛山市三水区国裕饮食管理有限公司 | G61: LNZLHT2025120914901 | H61: 国裕帕力安4.5T（尾板）*5 | I61: 3 | J61: 羚牛136辆4.5T冷链车 | K61: 2026-04-01 | L61: 2026-04-18 | M61: 18 | N61: 3000 | O61: 364.9 | P61: 391.6 | Q61: - | R61: 13.05 | S61: 未达标 | T61: 已完成 | U61: 2025-12-23
A62: 粤AGP9739 | B62: 2026 | C62: 4 | D62: 业务六部 | E62: 钟祥 | F62: 佛山市三水区国裕饮食管理有限公司 | G62: LNZLHT2025120914901 | H62: 国裕帕力安4.5T（尾板）*5 | I62: 3 | J62: 羚牛136辆4.5T冷链车 | K62: 2026-04-01 | L62: 2026-04-18 | M62: 18 | N62: 3000 | O62: 66.7 | P62: 92.6 | Q62: - | R62: 3.09 | S62: 未达标 | T62: 已完成 | U62: 2025-12-23
A63: 粤AGP7016 | B63: 2026 | C63: 4 | D63: 业务六部 | E63: 岑彦 | F63: 佛山市晋膳美食品供应链有限公司 | G63: LNZLHT 20260424014901 | H63: 帕力安4.5T（尾板）*2 | I63: 3 | J63: 羚牛136辆4.5T冷链车 | K63: 2026-04-28 | L63: 2026-04-30 | M63: 3 | N63: 500 | O63: 748.3 | P63: 0 | Q63: 748.3 | R63: 0 | S63: 未达标 | T63: 进行中 | U63: 2026-04-28

Sheet 4月业务考核车辆总览
A1: 车牌号 | B1: 考核年份 | C1: 考核月份 | D1: 部门名称 | E1: 销售经理 | F1: 客户名称 | G1: 合同编号 | H1: 项目名称 | I1: 考核目标ID | J1: 考核目标 | K1: 考核开始日期 | L1: 考核结束日期 | M1: 考核天数 | N1: 应考核里程(km) | O1: 仪表盘里程(km) | P1: GPS行驶里程(km) | Q1: 测试里程(km) | R1: 完成率(%) | S1: 是否达标 | T1: 考核状态 | U1: 交车日期 | V1: 预计还车日期 | W1: 实际还车日期
A2: 粤AGE6410 | B2: 2026 | C2: 4 | D2: 业务二部 | E2: 尚建华 | F2: 新疆中铁黑豹物流有限公司 | G2: LNZLHT2024090201 | H2: 新疆中铁黑豹租赁-跃进4.5T*10 | I2: 1 | J2: 交投40辆4.5T普货 | K2: 2026-04-01 | L2: 2026-04-30 | M2: 30 | N2: 3000 | O2: 5744.9 | P2: 5744.9 | Q2: =O2-P2 -> 0 | R2: 191.5 | S2: 达标 | T2: 进行中 | U2: 2025-08-31
A3: 粤AGP2035 | B3: 2026 | C3: 4 | D3: 业务二部 | E3: 尚建华 | F3: 嘉兴益顺冷链物流有限公司 | G3: 20250801001 | H3: 嘉兴益顺4.5T物流业务 | I3: 3 | J3: 羚牛136辆4.5T冷链车 | K3: 2026-04-01 | L3: 2026-04-30 | M3: 30 | N3: 5000 | O3: 9025.9 | P3: 9025.9 | Q3: 0 | R3: 180.52 | S3: 达标 | T3: 进行中 | U3: 2025-11-14
A4: 粤AGP3027 | B4: 2026 | C4: 4 | D4: 业务二部 | E4: 尚建华 | F4: 嘉兴益顺冷链物流有限公司 | G4: LNZLHT 20260401001- | H4: 嘉兴益顺租赁4.5T*4 | I4: 3 | J4: 羚牛136辆4.5T冷链车 | K4: 2026-04-01 | L4: 2026-04-30 | M4: 30 | N4: 5000 | O4: 4467.9 | P4: 4467.9 | Q4: 0 | R4: 89.36 | S4: 未达标 | T4: 进行中 | U4: 2026-03-13
A5: 粤AGP3028 | B5: 2026 | C5: 4 | D5: 业务二部 | E5: 尚建华 | F5: 新疆中铁黑豹物流有限公司 | G5: LNZLHT2024090201 | H5: 新疆中铁黑豹租赁-跃进4.5T*10 | I5: 2 | J5: 交投190辆4.5T冷链车 | K5: 2026-04-01 | L5: 2026-04-30 | M5: 30 | N5: 3000 | O5: 3051.7 | P5: 3051.7 | Q5: 0 | R5: 101.72 | S5: 达标 | T5: 进行中 | U5: 2025-10-30
A6: 粤AGP3486 | B6: 2026 | C6: 4 | D6: 业务二部 | E6: 尚建华 | F6: 新疆佳淇信息科技有限公司 | G6: LNZLHT 20260317001 | H6: 新疆佳淇租赁4.5T*3 | I6: 3 | J6: 羚牛136辆4.5T冷链车 | K6: 2026-04-01 | L6: 2026-04-30 | M6: 30 | N6: 5000 | O6: 8838.2 | P6: 4143 | Q6: 4695.2 | R6: 82.86 | S6: 未达标 | T6: 进行中 | U6: 2026-03-29
A7: 粤AGP3503 | B7: 2026 | C7: 4 | D7: 业务二部 | E7: 尚建华 | F7: 嘉兴益顺冷链物流有限公司 | G7: 20250801001 | H7: 嘉兴益顺4.5T物流业务 | I7: 3 | J7: 羚牛136辆4.5T冷链车 | K7: 2026-04-01 | L7: 2026-04-30 | M7: 30 | N7: 5000 | O7: 8599.5 | P7: 8599.5 | Q7: 0 | R7: 171.99 | S7: 达标 | T7: 进行中 | U7: 2025-12-25
A8: 粤AGP3617 | B8: 2026 | C8: 4 | D8: 业务二部 | E8: 尚建华 | F8: 新疆佳淇信息科技有限公司 | G8: LNZLHT 20260317001 | H8: 新疆佳淇租赁4.5T*3 | I8: 3 | J8: 羚牛136辆4.5T冷链车 | K8: 2026-04-01 | L8: 2026-04-30 | M8: 30 | N8: 5000 | O8: 8157.2 | P8: 3592.1 | Q8: 4565.1 | R8: 71.84 | S8: 未达标 | T8: 进行中 | U8: 2026-03-29
A9: 粤AGP3649 | B9: 2026 | C9: 4 | D9: 业务二部 | E9: 尚建华 | F9: 嘉兴益顺冷链物流有限公司 | G9: LNZLHT 20260404001 | H9: 嘉兴益顺冷链租赁4.5T*2 | I9: 3 | J9: 羚牛136辆4.5T冷链车 | K9: 2026-04-06 | L9: 2026-04-30 | M9: 25 | N9: 4166.67 | O9: 7229.5 | P9: 7229.5 | Q9: 0 | R9: 173.51 | S9: 达标 | T9: 进行中 | U9: 2026-04-06
A10: 粤AGP4318 | B10: 2026 | C10: 4 | D10: 业务二部 | E10: 尚建华 | F10: 嘉兴益顺冷链物流有限公司 | G10: 20250801001 | H10: 嘉兴益顺4.5T物流业务 | I10: 3 | J10: 羚牛136辆4.5T冷链车 | K10: 2026-04-01 | L10: 2026-04-30 | M10: 30 | N10: 5000 | O10: 11772.1 | P10: 11481 | Q10: 291.1 | R10: 229.62 | S10: 达标 | T10: 进行中 | U10: 2025-12-08
A11: 粤AGP4321 | B11: 2026 | C11: 4 | D11: 业务二部 | E11: 尚建华 | F11: 嘉兴益顺冷链物流有限公司 | G11: 20250801001 | H11: 嘉兴益顺4.5T物流业务 | I11: 3 | J11: 羚牛136辆4.5T冷链车 | K11: 2026-04-01 | L11: 2026-04-30 | M11: 30 | N11: 5000 | O11: 12033 | P11: 11933.9 | Q11: 99.1 | R11: 238.68 | S11: 达标 | T11: 进行中 | U11: 2025-11-27
A12: 粤AGP4377 | B12: 2026 | C12: 4 | D12: 业务二部 | E12: 尚建华 | F12: 嘉兴益顺冷链物流有限公司 | G12: 20250801001 | H12: 嘉兴益顺4.5T物流业务 | I12: 3 | J12: 羚牛136辆4.5T冷链车 | K12: 2026-04-01 | L12: 2026-04-30 | M12: 30 | N12: 5000 | O12: 19750.5 | P12: 1782.5 | Q12: 17968 | R12: 35.65 | S12: 未达标 | T12: 进行中 | U12: 2026-02-27
A13: 粤AGP4489 | B13: 2026 | C13: 4 | D13: 业务二部 | E13: 尚建华 | F13: 嘉兴益顺冷链物流有限公司 | G13: 20250801001 | H13: 嘉兴益顺4.5T物流业务 | I13: 3 | J13: 羚牛136辆4.5T冷链车 | K13: 2026-04-01 | L13: 2026-04-30 | M13: 30 | N13: 5000 | O13: 8238.1 | P13: 8238.1 | Q13: 0 | R13: 164.76 | S13: 达标 | T13: 进行中 | U13: 2026-02-05
A14: 粤AGP5158 | B14: 2026 | C14: 4 | D14: 业务二部 | E14: 尚建华 | F14: 嘉兴益顺冷链物流有限公司 | G14: 20250801001 | H14: 嘉兴益顺4.5T物流业务 | I14: 2 | J14: 交投190辆4.5T冷链车 | K14: 2026-04-01 | L14: 2026-04-30 | M14: 30 | N14: 3000 | O14: 7492.4 | P14: 7492.4 | Q14: 0 | R14: 249.75 | S14: 达标 | T14: 进行中 | U14: 2025-08-06
A15: 粤AGP5165 | B15: 2026 | C15: 4 | D15: 业务二部 | E15: 尚建华 | F15: 嘉兴益顺冷链物流有限公司 | G15: LNZLHT 20260404001 | H15: 嘉兴益顺冷链租赁4.5T*2 | I15: 3 | J15: 羚牛136辆4.5T冷链车 | K15: 2026-04-06 | L15: 2026-04-30 | M15: 25 | N15: 4166.67 | O15: 5861.5 | P15: 5861.5 | Q15: 0 | R15: 140.68 | S15: 达标 | T15: 进行中 | U15: 2026-04-06
A16: 粤AGP5617 | B16: 2026 | C16: 4 | D16: 业务二部 | E16: 尚建华 | F16: 嘉兴益顺冷链物流有限公司 | G16: LNZLHT 20260401001- | H16: 嘉兴益顺租赁4.5T*4 | I16: 3 | J16: 羚牛136辆4.5T冷链车 | K16: 2026-04-01 | L16: 2026-04-30 | M16: 30 | N16: 5000 | O16: 7423.6 | P16: 7423.6 | Q16: 0 | R16: 148.47 | S16: 达标 | T16: 进行中 | U16: 2026-03-13
A17: 粤AGP5642 | B17: 2026 | C17: 4 | D17: 业务二部 | E17: 尚建华 | F17: 嘉兴益顺冷链物流有限公司 | G17: 20250801001 | H17: 嘉兴益顺4.5T物流业务 | I17: 3 | J17: 羚牛136辆4.5T冷链车 | K17: 2026-04-01 | L17: 2026-04-30 | M17: 30 | N17: 5000 | O17: 8778 | P17: 8778 | Q17: 0 | R17: 175.56 | S17: 达标 | T17: 进行中 | U17: 2026-02-06
A18: 粤AGP5643 | B18: 2026 | C18: 4 | D18: 业务二部 | E18: 尚建华 | F18: 新疆中铁黑豹物流有限公司 | G18: LNZLHT2024090201 | H18: 新疆中铁黑豹租赁-跃进4.5T*10 | I18: 3 | J18: 羚牛136辆4.5T冷链车 | K18: 2026-04-01 | L18: 2026-04-30 | M18: 30 | N18: 5000 | O18: 6364.7 | P18: 3701.7 | Q18: 2663 | R18: 74.03 | S18: 未达标 | T18: 进行中 | U18: 2025-11-26
A19: 粤AGP5711 | B19: 2026 | C19: 4 | D19: 业务二部 | E19: 尚建华 | F19: 黑龙江圣合商贸有限公司新疆分公司 | G19: LNZLHT 20260414002 | H19: 黑龙江圣和商贸租赁4.5T*1 | I19: 3 | J19: 羚牛136辆4.5T冷链车 | K19: 2026-04-23 | L19: 2026-04-30 | M19: 8 | N19: 1333.33 | O19: 11502.5 | P19: 316.9 | Q19: 11185.6 | R19: 23.77 | S19: 未达标 | T19: 进行中 | U19: 2026-04-23
A20: 粤AGP5711 | B20: 2026 | C20: 4 | D20: 业务二部 | E20: 尚建华 | F20: 新疆中铁黑豹物流有限公司 | G20: LNZLHT2024090201 | H20: 新疆中铁黑豹租赁-跃进4.5T*10 | I20: 3 | J20: 羚牛136辆4.5T冷链车 | K20: 2026-04-01 | L20: 2026-04-10 | M20: 10 | N20: 1666.67 | O20: 0.2 | P20: 0.2 | Q20: 0 | R20: 0.01 | S20: 未达标 | T20: 已完成 | U20: 2025-11-28
A21: 粤AGP5791 | B21: 2026 | C21: 4 | D21: 业务二部 | E21: 尚建华 | F21: 新疆中铁黑豹物流有限公司 | G21: LNZLHT2024090201 | H21: 新疆中铁黑豹租赁-跃进4.5T*10 | I21: 3 | J21: 羚牛136辆4.5T冷链车 | K21: 2026-04-01 | L21: 2026-04-30 | M21: 30 | N21: 5000 | O21: 14526.2 | P21: 5283.4 | Q21: 9242.8 | R21: 105.67 | S21: 达标 | T21: 进行中 | U21: 2025-11-06
A22: 粤AGP5799 | B22: 2026 | C22: 4 | D22: 业务二部 | E22: 尚建华 | F22: 嘉兴益顺冷链物流有限公司 | G22: 20250801001 | H22: 嘉兴益顺4.5T物流业务 | I22: 2 | J22: 交投190辆4.5T冷链车 | K22: 2026-04-01 | L22: 2026-04-30 | M22: 30 | N22: 3000 | O22: 8818.1 | P22: 8818.1 | Q22: 0 | R22: 293.94 | S22: 达标 | T22: 进行中 | U22: 2026-02-01
A23: 粤AGP6639 | B23: 2026 | C23: 4 | D23: 业务二部 | E23: 尚建华 | F23: 嘉兴益顺冷链物流有限公司 | G23: 20250801001 | H23: 嘉兴益顺4.5T物流业务 | I23: 2 | J23: 交投190辆4.5T冷链车 | K23: 2026-04-01 | L23: 2026-04-30 | M23: 30 | N23: 3000 | O23: 5316.3 | P23: 5316.3 | Q23: 0 | R23: 177.21 | S23: 达标 | T23: 进行中 | U23: 2025-08-01
A24: 粤AGP6651 | B24: 2026 | C24: 4 | D24: 业务二部 | E24: 尚建华 | F24: 嘉兴益顺冷链物流有限公司 | G24: 20250801001 | H24: 嘉兴益顺4.5T物流业务 | I24: 2 | J24: 交投190辆4.5T冷链车 | K24: 2026-04-01 | L24: 2026-04-30 | M24: 30 | N24: 3000 | O24: 3677 | P24: 3677 | Q24: 0 | R24: 122.57 | S24: 达标 | T24: 进行中 | U24: 2025-08-16
A25: 粤AGP6680 | B25: 2026 | C25: 4 | D25: 业务二部 | E25: 尚建华 | F25: 嘉兴金小悦贸易有限公司 | G25: JXLN-23-037(20230911) | H25: 金小悦餐饮配送（新增4.5T*1） | I25: 2 | J25: 交投190辆4.5T冷链车 | K25: 2026-04-01 | L25: 2026-04-30 | M25: 30 | N25: 3000 | O25: 2381.7 | P25: 2381.7 | Q25: 0 | R25: 79.39 | S25: 未达标 | T25: 进行中 | U25: 2025-08-14
A26: 粤AGP7018 | B26: 2026 | C26: 4 | D26: 业务二部 | E26: 尚建华 | F26: 嘉兴益顺冷链物流有限公司 | G26: LNZLHT 20260401001- | H26: 嘉兴益顺租赁4.5T*4 | I26: 2 | J26: 交投190辆4.5T冷链车 | K26: 2026-04-01 | L26: 2026-04-30 | M26: 30 | N26: 3000 | O26: 5458.8 | P26: 5458.8 | Q26: 0 | R26: 181.96 | S26: 达标 | T26: 进行中 | U26: 2026-03-01
A27: 粤AGP9338 | B27: 2026 | C27: 4 | D27: 业务二部 | E27: 尚建华 | F27: 嘉兴益顺冷链物流有限公司 | G27: 20250801001 | H27: 嘉兴益顺4.5T物流业务 | I27: 2 | J27: 交投190辆4.5T冷链车 | K27: 2026-04-01 | L27: 2026-04-30 | M27: 30 | N27: 3000 | O27: 0.1 | P27: 0.1 | Q27: 0 | R27: 0 | S27: 未达标 | T27: 进行中 | U27: 2025-11-24
A28: 粤AGP9346 | B28: 2026 | C28: 4 | D28: 业务二部 | E28: 尚建华 | F28: 嘉兴益顺冷链物流有限公司 | G28: LNZLHT 20260401001- | H28: 嘉兴益顺租赁4.5T*4 | I28: 3 | J28: 羚牛136辆4.5T冷链车 | K28: 2026-04-01 | L28: 2026-04-30 | M28: 30 | N28: 5000 | O28: 7485.3 | P28: 7485.3 | Q28: 0 | R28: 149.71 | S28: 达标 | T28: 进行中 | U28: 2026-03-13
A29: 粤AGP9350 | B29: 2026 | C29: 4 | D29: 业务二部 | E29: 尚建华 | F29: 嘉兴益顺冷链物流有限公司 | G29: LNZLHT20251022002 | H29: 嘉兴益顺租赁4.5T*2 | I29: 3 | J29: 羚牛136辆4.5T冷链车 | K29: 2026-04-01 | L29: 2026-04-30 | M29: 30 | N29: 5000 | O29: 7243 | P29: 7243 | Q29: 0 | R29: 144.86 | S29: 达标 | T29: 进行中 | U29: 2026-02-03
A30: 粤AGP9702 | B30: 2026 | C30: 4 | D30: 业务二部 | E30: 尚建华 | F30: 嘉兴益顺冷链物流有限公司 | G30: 20250801001 | H30: 嘉兴益顺4.5T物流业务 | I30: 3 | J30: 羚牛136辆4.5T冷链车 | K30: 2026-04-01 | L30: 2026-04-30 | M30: 30 | N30: 5000 | O30: 6303.5 | P30: 6303.5 | Q30: 0 | R30: 126.07 | S30: 达标 | T30: 进行中 | U30: 2025-11-17
A31: 粤AGP9706 | B31: 2026 | C31: 4 | D31: 业务二部 | E31: 尚建华 | F31: 嘉兴益顺冷链物流有限公司 | G31: 20250801001 | H31: 嘉兴益顺4.5T物流业务 | I31: 3 | J31: 羚牛136辆4.5T冷链车 | K31: 2026-04-01 | L31: 2026-04-30 | M31: 30 | N31: 5000 | O31: 6403.5 | P31: 6403.5 | Q31: 0 | R31: 128.07 | S31: 达标 | T31: 进行中 | U31: 2025-12-11
A32: 粤AGP9753 | B32: 2026 | C32: 4 | D32: 业务二部 | E32: 尚建华 | F32: 羚牛氢能-物流中心 | G32: JXLN-23-037 | H32: 物流自运营-金小悦 | I32: 3 | J32: 羚牛136辆4.5T冷链车 | K32: 2026-04-01 | L32: 2026-04-30 | M32: 30 | N32: 5000 | O32: 21517.1 | P32: 4202.9 | Q32: 17314.2 | R32: 84.06 | S32: 未达标 | T32: 进行中 | U32: 2025-11-20
A33: 粤AGP9825 | B33: 2026 | C33: 4 | D33: 业务二部 | E33: 尚建华 | F33: 嘉兴益顺冷链物流有限公司 | G33: 20250801001 | H33: 嘉兴益顺4.5T物流业务 | I33: 2 | J33: 交投190辆4.5T冷链车 | K33: 2026-04-01 | L33: 2026-04-30 | M33: 30 | N33: 3000 | O33: 5767.5 | P33: 5767.5 | Q33: 0 | R33: 192.25 | S33: 达标 | T33: 进行中 | U33: 2025-08-14
A34: 粤AGQ0119 | B34: 2026 | C34: 4 | D34: 业务二部 | E34: 尚建华 | F34: 嘉兴益顺冷链物流有限公司 | G34: 20250801001 | H34: 嘉兴益顺4.5T物流业务 | I34: 2 | J34: 交投190辆4.5T冷链车 | K34: 2026-04-01 | L34: 2026-04-30 | M34: 30 | N34: 3000 | O34: 6307.4 | P34: 6307.4 | Q34: 0 | R34: 210.25 | S34: 达标 | T34: 进行中 | U34: 2025-08-04
A35: 粤AGQ1330 | B35: 2026 | C35: 4 | D35: 业务二部 | E35: 尚建华 | F35: 新疆佳淇信息科技有限公司 | G35: LNZLHT20250912001 | H35: 新疆佳淇4.5T*2 | I35: 2 | J35: 交投190辆4.5T冷链车 | K35: 2026-04-01 | L35: 2026-04-30 | M35: 30 | N35: 3000 | O35: 5521.7 | P35: 5521.7 | Q35: 0 | R35: 184.06 | S35: 达标 | T35: 进行中 | U35: 2025-10-10
A36: 粤AGQ3688 | B36: 2026 | C36: 4 | D36: 业务二部 | E36: 尚建华 | F36: 嘉兴益顺冷链物流有限公司 | G36: LNZLHT20251022002 | H36: 嘉兴益顺租赁4.5T*2 | I36: 2 | J36: 交投190辆4.5T冷链车 | K36: 2026-04-01 | L36: 2026-04-30 | M36: 30 | N36: 3000 | O36: 4033.7 | P36: 4033.7 | Q36: 0 | R36: 134.46 | S36: 达标 | T36: 进行中 | U36: 2025-10-25
A37: 粤AGQ5869 | B37: 2026 | C37: 4 | D37: 业务二部 | E37: 尚建华 | F37: 嘉兴益顺冷链物流有限公司 | G37: 20250801001 | H37: 嘉兴益顺4.5T物流业务 | I37: 2 | J37: 交投190辆4.5T冷链车 | K37: 2026-04-01 | L37: 2026-04-30 | M37: 30 | N37: 3000 | O37: 5934.9 | P37: 5934.9 | Q37: 0 | R37: 197.83 | S37: 达标 | T37: 进行中 | U37: 2025-12-02
A38: 粤AGQ8393 | B38: 2026 | C38: 4 | D38: 业务二部 | E38: 尚建华 | F38: 嘉兴金小悦贸易有限公司 | G38: JXLN-24-058 | H38: 金小悦4.5T自运营 | I38: 2 | J38: 交投190辆4.5T冷链车 | K38: 2026-04-01 | L38: 2026-04-30 | M38: 30 | N38: 3000 | O38: 2302.3 | P38: 2302.3 | Q38: 0 | R38: 76.74 | S38: 未达标 | T38: 进行中 | U38: 2025-08-14
A39: 粤AGR0789 | B39: 2026 | C39: 4 | D39: 业务二部 | E39: 尚建华 | F39: 新疆中铁黑豹物流有限公司 | G39: LNZLHT2024090201 | H39: 新疆中铁黑豹租赁-跃进4.5T*10 | I39: 2 | J39: 交投190辆4.5T冷链车 | K39: 2026-04-01 | L39: 2026-04-30 | M39: 30 | N39: 3000 | O39: 4229.7 | P39: 4229.7 | Q39: 0 | R39: 140.99 | S39: 达标 | T39: 进行中 | U39: 2025-08-31
A40: 粤AGR0790 | B40: 2026 | C40: 4 | D40: 业务二部 | E40: 尚建华 | F40: 嘉兴益顺冷链物流有限公司 | G40: 20250801001 | H40: 嘉兴益顺4.5T物流业务 | I40: 2 | J40: 交投190辆4.5T冷链车 | K40: 2026-04-01 | L40: 2026-04-30 | M40: 30 | N40: 3000 | O40: 3910.9 | P40: 3910.9 | Q40: 0 | R40: 130.36 | S40: 达标 | T40: 进行中 | U40: 2025-11-19
A41: 粤AGR3208 | B41: 2026 | C41: 4 | D41: 业务二部 | E41: 尚建华 | F41: 羚牛氢能-物流中心 | G41: JXLN-23-037 | H41: 物流自运营-金小悦 | I41: 2 | J41: 交投190辆4.5T冷链车 | K41: 2026-04-01 | L41: 2026-04-30 | M41: 30 | N41: 3000 | O41: 847.6 | P41: 847.6 | Q41: 0 | R41: 28.25 | S41: 未达标 | T41: 进行中 | U41: 2025-07-21
A42: 粤AGR5068 | B42: 2026 | C42: 4 | D42: 业务二部 | E42: 尚建华 | F42: 新疆中铁黑豹物流有限公司 | G42: LNZLHT2024090201 | H42: 新疆中铁黑豹租赁-跃进4.5T*10 | I42: 2 | J42: 交投190辆4.5T冷链车 | K42: 2026-04-01 | L42: 2026-04-30 | M42: 30 | N42: 3000 | O42: 4414.5 | P42: 4414.5 | Q42: 0 | R42: 147.15 | S42: 达标 | T42: 进行中 | U42: 2025-10-30
A43: 粤AGR5088 | B43: 2026 | C43: 4 | D43: 业务二部 | E43: 尚建华 | F43: 新疆中铁黑豹物流有限公司 | G43: LNZLHT2024090201 | H43: 新疆中铁黑豹租赁-跃进4.5T*10 | I43: 2 | J43: 交投190辆4.5T冷链车 | K43: 2026-04-01 | L43: 2026-04-30 | M43: 30 | N43: 3000 | O43: 2454.9 | P43: 2454.9 | Q43: 0 | R43: 81.83 | S43: 未达标 | T43: 进行中 | U43: 2025-08-31
A44: 粤AGR5098 | B44: 2026 | C44: 4 | D44: 业务二部 | E44: 尚建华 | F44: 新疆佳淇信息科技有限公司 | G44: LNZLHT20250912001 | H44: 新疆佳淇4.5T*2 | I44: 2 | J44: 交投190辆4.5T冷链车 | K44: 2026-04-01 | L44: 2026-04-30 | M44: 30 | N44: 3000 | O44: 4372.4 | P44: 4372.4 | Q44: 0 | R44: 145.75 | S44: 达标 | T44: 进行中 | U44: 2025-10-10
A45: 粤AGR5226 | B45: 2026 | C45: 4 | D45: 业务二部 | E45: 尚建华 | F45: 新疆中铁黑豹物流有限公司 | G45: LNZLHT2024090201 | H45: 新疆中铁黑豹租赁-跃进4.5T*10 | I45: 2 | J45: 交投190辆4.5T冷链车 | K45: 2026-04-01 | L45: 2026-04-30 | M45: 30 | N45: 3000 | O45: 3113.8 | P45: 3113.8 | Q45: 0 | R45: 103.79 | S45: 达标 | T45: 进行中 | U45: 2025-11-06
A46: 粤AGR5539 | B46: 2026 | C46: 4 | D46: 业务二部 | E46: 尚建华 | F46: 嘉兴益顺冷链物流有限公司 | G46: 20250801001 | H46: 嘉兴益顺4.5T物流业务 | I46: 2 | J46: 交投190辆4.5T冷链车 | K46: 2026-04-01 | L46: 2026-04-30 | M46: 30 | N46: 3000 | O46: 6354 | P46: 6354 | Q46: 0 | R46: 211.8 | S46: 达标 | T46: 进行中 | U46: 2025-12-19
A47: 粤AGR6859 | B47: 2026 | C47: 4 | D47: 业务二部 | E47: 尚建华 | F47: 嘉兴益顺冷链物流有限公司 | G47: 20250801001 | H47: 嘉兴益顺4.5T物流业务 | I47: 2 | J47: 交投190辆4.5T冷链车 | K47: 2026-04-01 | L47: 2026-04-30 | M47: 30 | N47: 3000 | O47: 5.2 | P47: 5.2 | Q47: 0 | R47: 0.17 | S47: 未达标 | T47: 进行中 | U47: 2025-11-06
A48: 粤AGR6879 | B48: 2026 | C48: 4 | D48: 业务二部 | E48: 尚建华 | F48: 嘉兴益顺冷链物流有限公司 | G48: 20250801001 | H48: 嘉兴益顺4.5T物流业务 | I48: 2 | J48: 交投190辆4.5T冷链车 | K48: 2026-04-01 | L48: 2026-04-30 | M48: 30 | N48: 3000 | O48: 6757.5 | P48: 6757.5 | Q48: 0 | R48: 225.25 | S48: 达标 | T48: 进行中 | U48: 2025-08-05
A49: 粤AGR9766 | B49: 2026 | C49: 4 | D49: 业务二部 | E49: 尚建华 | F49: 新疆中铁黑豹物流有限公司 | G49: LNZLHT2024090201 | H49: 新疆中铁黑豹租赁-跃进4.5T*10 | I49: 2 | J49: 交投190辆4.5T冷链车 | K49: 2026-04-01 | L49: 2026-04-30 | M49: 30 | N49: 3000 | O49: 15668.8 | P49: 15668.8 | Q49: 0 | R49: 522.29 | S49: 达标 | T49: 进行中 | U49: 2026-03-23
A50: 粤AGR9815 | B50: 2026 | C50: 4 | D50: 业务二部 | E50: 尚建华 | F50: 嘉兴益顺冷链物流有限公司 | G50: 20250801001 | H50: 嘉兴益顺4.5T物流业务 | I50: 2 | J50: 交投190辆4.5T冷链车 | K50: 2026-04-01 | L50: 2026-04-30 | M50: 30 | N50: 3000 | O50: 5864.8 | P50: 5864.8 | Q50: 0 | R50: 195.49 | S50: 达标 | T50: 进行中 | U50: 2025-08-20
A51: 粤AGR9866 | B51: 2026 | C51: 4 | D51: 业务二部 | E51: 尚建华 | F51: 嘉兴益顺冷链物流有限公司 | G51: 20250801001 | H51: 嘉兴益顺4.5T物流业务 | I51: 2 | J51: 交投190辆4.5T冷链车 | K51: 2026-04-01 | L51: 2026-04-30 | M51: 30 | N51: 3000 | O51: 3092.8 | P51: 3092.8 | Q51: 0 | R51: 103.09 | S51: 达标 | T51: 进行中 | U51: 2025-08-14
A52: 粤AGR9877 | B52: 2026 | C52: 4 | D52: 业务二部 | E52: 尚建华 | F52: 嘉兴益顺冷链物流有限公司 | G52: 20250801001 | H52: 嘉兴益顺4.5T物流业务 | I52: 2 | J52: 交投190辆4.5T冷链车 | K52: 2026-04-01 | L52: 2026-04-30 | M52: 30 | N52: 3000 | O52: 6270.5 | P52: 6270.5 | Q52: 0 | R52: 209.02 | S52: 达标 | T52: 进行中 | U52: 2025-08-06
A53: 粤A00116F | B53: 2026 | C53: 4 | D53: 业务二部 | E53: 刘念念 | F53: 嘉兴智奇供应链管理有限公司 | G53: 20260105 | H53: 嘉兴智奇18T自运营 | I53: 4 | J53: 羚牛100辆18T | K53: 2026-04-01 | L53: 2026-04-30 | M53: 30 | N53: 6000 | O53: 7783.7 | P53: 7783.7 | Q53: 0 | R53: 129.73 | S53: 达标 | T53: 进行中 | U53: 2026-01-06
A54: 粤A00828F | B54: 2026 | C54: 4 | D54: 业务二部 | E54: 刘念念 | F54: 嘉兴智奇供应链管理有限公司 | G54: 20260105 | H54: 嘉兴智奇18T自运营 | I54: 4 | J54: 羚牛100辆18T | K54: 2026-04-01 | L54: 2026-04-30 | M54: 30 | N54: 6000 | O54: 11154.3 | P54: 11154.3 | Q54: 0 | R54: 185.9 | S54: 达标 | T54: 进行中 | U54: 2026-03-26
A55: 粤A01013F | B55: 2026 | C55: 4 | D55: 业务二部 | E55: 刘念念 | F55: 嘉兴智奇供应链管理有限公司 | G55: 20260105 | H55: 嘉兴智奇18T自运营 | I55: 4 | J55: 羚牛100辆18T | K55: 2026-04-01 | L55: 2026-04-30 | M55: 30 | N55: 6000 | O55: 12074.5 | P55: 12074.5 | Q55: 0 | R55: 201.24 | S55: 达标 | T55: 进行中 | U55: 2026-01-16
A56: 粤A01505F | B56: 2026 | C56: 4 | D56: 业务二部 | E56: 刘念念 | F56: 上海利合供应链管理有限公司 (二部) | G56: LNZLHT 20260414001 | H56: 上海利合租赁现代18T*1 | I56: 4 | J56: 羚牛100辆18T | K56: 2026-04-28 | L56: 2026-04-30 | M56: 3 | N56: 600 | O56: 596.6 | P56: 596.6 | Q56: 0 | R56: 99.43 | S56: 未达标 | T56: 进行中 | U56: 2026-04-28
A57: 粤A01506F | B57: 2026 | C57: 4 | D57: 业务二部 | E57: 刘念念 | F57: 上海利合供应链管理有限公司 (二部) | G57: LNZLHT 20260202002 | H57: 上海利合租赁18T*1(宇视） | I57: 4 | J57: 羚牛100辆18T | K57: 2026-04-01 | L57: 2026-04-30 | M57: 30 | N57: 6000 | O57: 6193.6 | P57: 6193.6 | Q57: 0 | R57: 103.23 | S57: 达标 | T57: 进行中 | U57: 2026-02-04
A58: 粤A01886F | B58: 2026 | C58: 4 | D58: 业务二部 | E58: 刘念念 | F58: 嘉兴港区众通快递有限公司 | G58: LNZLHT 20251017001 | H58: 嘉兴港区众通18T*2 | I58: 4 | J58: 羚牛100辆18T | K58: 2026-04-01 | L58: 2026-04-30 | M58: 30 | N58: 6000 | O58: 2016.9 | P58: 2016.9 | Q58: 0 | R58: 33.62 | S58: 未达标 | T58: 进行中 | U58: 2026-01-09
A59: 粤A02007F | B59: 2026 | C59: 4 | D59: 业务二部 | E59: 刘念念 | F59: 嘉兴智奇供应链管理有限公司 | G59: 20260105 | H59: 嘉兴智奇18T自运营 | I59: 4 | J59: 羚牛100辆18T | K59: 2026-04-01 | L59: 2026-04-30 | M59: 30 | N59: 6000 | O59: 10537 | P59: 10537 | Q59: 0 | R59: 175.62 | S59: 达标 | T59: 进行中 | U59: 2026-01-05
A60: 粤A02298F | B60: 2026 | C60: 4 | D60: 业务二部 | E60: 刘念念 | F60: 嘉兴智奇供应链管理有限公司 | G60: 20260105 | H60: 嘉兴智奇18T自运营 | I60: 4 | J60: 羚牛100辆18T | K60: 2026-04-01 | L60: 2026-04-30 | M60: 30 | N60: 6000 | O60: 10839 | P60: 10839 | Q60: 0 | R60: 180.65 | S60: 达标 | T60: 进行中 | U60: 2026-01-06
A61: 粤A02699F | B61: 2026 | C61: 4 | D61: 业务二部 | E61: 刘念念 | F61: 苏州望亭远方物流有限公司 | G61: LNZLHT 20260225001 | H61: 苏州望亭租赁现代18T*1 | I61: 4 | J61: 羚牛100辆18T | K61: 2026-04-01 | L61: 2026-04-30 | M61: 30 | N61: 6000 | O61: 2757.2 | P61: 2757.2 | Q61: 0 | R61: 45.95 | S61: 未达标 | T61: 进行中 | U61: 2026-02-28
A62: 粤A03350F | B62: 2026 | C62: 4 | D62: 业务二部 | E62: 刘念念 | F62: 嘉兴智奇供应链管理有限公司 | G62: 20260105 | H62: 嘉兴智奇18T自运营 | I62: 4 | J62: 羚牛100辆18T | K62: 2026-04-01 | L62: 2026-04-30 | M62: 30 | N62: 6000 | O62: 9857.5 | P62: 9857.5 | Q62: 0 | R62: 164.29 | S62: 达标 | T62: 进行中 | U62: 2026-01-20
A63: 粤A03423F | B63: 2026 | C63: 4 | D63: 业务二部 | E63: 刘念念 | F63: 嘉兴港区韵达快递有限公司新仓分理部 | G63: LNZLHT 20251202001 | H63: 新仓港区韵达快递租赁18T*1 | I63: 4 | J63: 羚牛100辆18T | K63: 2026-04-01 | L63: 2026-04-14 | M63: 14 | N63: 2800 | O63: 2092.5 | P63: 2092.5 | Q63: 0 | R63: 74.73 | S63: 未达标 | T63: 已完成 | U63: 2026-03-05
A64: 粤A03506F | B64: 2026 | C64: 4 | D64: 业务二部 | E64: 刘念念 | F64: 嘉兴智奇供应链管理有限公司 | G64: 20260105 | H64: 嘉兴智奇18T自运营 | I64: 4 | J64: 羚牛100辆18T | K64: 2026-04-01 | L64: 2026-04-30 | M64: 30 | N64: 6000 | O64: 10502.1 | P64: 10502.1 | Q64: 0 | R64: 175.03 | S64: 达标 | T64: 进行中 | U64: 2026-01-22
A65: 粤A03517F | B65: 2026 | C65: 4 | D65: 业务二部 | E65: 刘念念 | F65: 嘉兴智奇供应链管理有限公司 | G65: 20260105 | H65: 嘉兴智奇18T自运营 | I65: 4 | J65: 羚牛100辆18T | K65: 2026-04-01 | L65: 2026-04-30 | M65: 30 | N65: 6000 | O65: 7728.4 | P65: 7728.4 | Q65: 0 | R65: 128.81 | S65: 达标 | T65: 进行中 | U65: 2026-03-19
A66: 粤A03676F | B66: 2026 | C66: 4 | D66: 业务二部 | E66: 刘念念 | F66: 嘉兴智奇供应链管理有限公司 | G66: LNZLHT 20260413001 | H66: 嘉兴智奇租赁现代18T*4 | I66: 4 | J66: 羚牛100辆18T | K66: 2026-04-19 | L66: 2026-04-30 | M66: 12 | N66: 2400 | O66: 2410.6 | P66: 2410.6 | Q66: =O66-P66 -> 0 | R66: 100.44 | S66: 达标 | T66: 进行中 | U66: 2026-04-19
A67: 粤A03676F | B67: 2026 | C67: 4 | D67: 业务二部 | E67: 刘念念 | F67: 嘉兴智奇供应链管理有限公司 | G67: 20260105 | H67: 嘉兴智奇18T自运营 | I67: 4 | J67: 羚牛100辆18T | K67: 2026-04-01 | L67: 2026-04-19 | M67: 19 | N67: 3800 | O67: 3924.5 | P67: 3924.5 | Q67: 0 | R67: 103.28 | S67: 达标 | T67: 已完成 | U67: 2026-03-23
A68: 粤A05609F | B68: 2026 | C68: 4 | D68: 业务二部 | E68: 刘念念 | F68: 嘉兴智奇供应链管理有限公司 | G68: 20260105 | H68: 嘉兴智奇18T自运营 | I68: 4 | J68: 羚牛100辆18T | K68: 2026-04-01 | L68: 2026-04-30 | M68: 30 | N68: 6000 | O68: 7638.4 | P68: 7638.4 | Q68: 0 | R68: 127.31 | S68: 达标 | T68: 进行中 | U68: 2026-01-13
A69: 粤A05650F | B69: 2026 | C69: 4 | D69: 业务二部 | E69: 刘念念 | F69: 嘉兴港区韵达快递有限公司 | G69: LNZLHT20251111001 | H69: 嘉兴港区韵达租赁18T*1 | I69: 4 | J69: 羚牛100辆18T | K69: 2026-04-01 | L69: 2026-04-30 | M69: 30 | N69: 6000 | O69: 2035.8 | P69: 2035.8 | Q69: 0 | R69: 33.93 | S69: 未达标 | T69: 进行中 | U69: 2026-03-19
A70: 粤A05776F | B70: 2026 | C70: 4 | D70: 业务二部 | E70: 刘念念 | F70: 嘉兴市南湖区大桥镇雪观运输装卸服务站 | G70: LNZLHT20251010001 | H70: 雪观运输租赁18T*3 | I70: 4 | J70: 羚牛100辆18T | K70: 2026-04-01 | L70: 2026-04-30 | M70: 30 | N70: 6000 | O70: 1440.5 | P70: 1440.5 | Q70: 0 | R70: 24.01 | S70: 未达标 | T70: 进行中 | U70: 2026-02-25
A71: 粤A05809F | B71: 2026 | C71: 4 | D71: 业务二部 | E71: 刘念念 | F71: 嘉兴市京宝物流有限公司 | G71: LNZLHT 20260425001 | H71: 嘉兴市京宝租赁18T*4 | I71: 4 | J71: 羚牛100辆18T | K71: 2026-04-26 | L71: 2026-04-30 | M71: 5 | N71: 1000 | O71: 447.5 | P71: 447.5 | Q71: 0 | R71: 44.75 | S71: 未达标 | T71: 进行中 | U71: 2026-04-26
A72: 粤A05809F | B72: 2026 | C72: 4 | D72: 业务二部 | E72: 刘念念 | F72: 嘉兴智奇供应链管理有限公司 | G72: 20260105 | H72: 嘉兴智奇18T自运营 | I72: 4 | J72: 羚牛100辆18T | K72: 2026-04-01 | L72: 2026-04-26 | M72: 26 | N72: 5200 | O72: 6733 | P72: 6733 | Q72: 0 | R72: 129.48 | S72: 达标 | T72: 已完成 | U72: 2026-01-06
A73: 粤A05876F | B73: 2026 | C73: 4 | D73: 业务二部 | E73: 刘念念 | F73: 嘉兴市南湖区新丰镇乐果货物运输服务部（个体工商户） | G73: LNZLHT20251216001 | H73: 新丰乐果运输租赁18T*2 | I73: 4 | J73: 羚牛100辆18T | K73: 2026-04-01 | L73: 2026-04-30 | M73: 30 | N73: 6000 | O73: 1558.7 | P73: 1558.7 | Q73: 0 | R73: 25.98 | S73: 未达标 | T73: 进行中 | U73: 2026-01-14
A74: 粤A05906F | B74: 2026 | C74: 4 | D74: 业务二部 | E74: 刘念念 | F74: 嘉兴智奇供应链管理有限公司 | G74: LNZLHT 20260413001 | H74: 嘉兴智奇租赁现代18T*4 | I74: 4 | J74: 羚牛100辆18T | K74: 2026-04-19 | L74: 2026-04-30 | M74: 12 | N74: 2400 | O74: 722.8 | P74: 722.8 | Q74: 0 | R74: 30.12 | S74: 未达标 | T74: 进行中 | U74: 2026-04-19
A75: 粤A05906F | B75: 2026 | C75: 4 | D75: 业务二部 | E75: 刘念念 | F75: 嘉兴智奇供应链管理有限公司 | G75: 20260105 | H75: 嘉兴智奇18T自运营 | I75: 4 | J75: 羚牛100辆18T | K75: 2026-04-01 | L75: 2026-04-19 | M75: 19 | N75: 3800 | O75: 4055.8 | P75: 4055.8 | Q75: 0 | R75: 106.73 | S75: 达标 | T75: 已完成 | U75: 2026-03-23
A76: 粤A06177F | B76: 2026 | C76: 4 | D76: 业务二部 | E76: 刘念念 | F76: 嘉兴智奇供应链管理有限公司 | G76: 20260105 | H76: 嘉兴智奇18T自运营 | I76: 4 | J76: 羚牛100辆18T | K76: 2026-04-01 | L76: 2026-04-30 | M76: 30 | N76: 6000 | O76: 9695.1 | P76: 9695.1 | Q76: 0 | R76: 161.59 | S76: 达标 | T76: 进行中 | U76: 2026-01-07
A77: 粤A06632F | B77: 2026 | C77: 4 | D77: 业务二部 | E77: 刘念念 | F77: 嘉兴智奇供应链管理有限公司 | G77: 20260105 | H77: 嘉兴智奇18T自运营 | I77: 4 | J77: 羚牛100辆18T | K77: 2026-04-01 | L77: 2026-04-30 | M77: 30 | N77: 6000 | O77: 6470.8 | P77: 6470.8 | Q77: 0 | R77: 107.85 | S77: 达标 | T77: 进行中 | U77: 2026-01-13
A78: 粤A07577F | B78: 2026 | C78: 4 | D78: 业务二部 | E78: 刘念念 | F78: 嘉兴智奇供应链管理有限公司 | G78: 20260105 | H78: 嘉兴智奇18T自运营 | I78: 4 | J78: 羚牛100辆18T | K78: 2026-04-01 | L78: 2026-04-30 | M78: 30 | N78: 6000 | O78: 10360.8 | P78: 10360.8 | Q78: 0 | R78: 172.68 | S78: 达标 | T78: 进行中 | U78: 2026-03-26
A79: 粤A08506F | B79: 2026 | C79: 4 | D79: 业务二部 | E79: 刘念念 | F79: 嘉兴智奇供应链管理有限公司 | G79: 20260105 | H79: 嘉兴智奇18T自运营 | I79: 4 | J79: 羚牛100辆18T | K79: 2026-04-01 | L79: 2026-04-30 | M79: 30 | N79: 6000 | O79: 11001 | P79: 11001 | Q79: 0 | R79: 183.35 | S79: 达标 | T79: 进行中 | U79: 2026-01-05
A80: 粤A08578F | B80: 2026 | C80: 4 | D80: 业务二部 | E80: 刘念念 | F80: 嘉兴智奇供应链管理有限公司 | G80: LNZLHT 20260413001 | H80: 嘉兴智奇租赁现代18T*4 | I80: 4 | J80: 羚牛100辆18T | K80: 2026-04-19 | L80: 2026-04-30 | M80: 12 | N80: 2400 | O80: 2820.6 | P80: 2820.6 | Q80: 0 | R80: 117.52 | S80: 达标 | T80: 进行中 | U80: 2026-04-19
A81: 粤A08578F | B81: 2026 | C81: 4 | D81: 业务二部 | E81: 刘念念 | F81: 嘉兴智奇供应链管理有限公司 | G81: 20260105 | H81: 嘉兴智奇18T自运营 | I81: 4 | J81: 羚牛100辆18T | K81: 2026-04-01 | L81: 2026-04-19 | M81: 19 | N81: 3800 | O81: 3504.3 | P81: 3504.3 | Q81: 0 | R81: 92.22 | S81: 未达标 | T81: 已完成 | U81: 2026-03-01
A82: 粤A08681F | B82: 2026 | C82: 4 | D82: 业务二部 | E82: 刘念念 | F82: 嘉兴智奇供应链管理有限公司 | G82: 20260105 | H82: 嘉兴智奇18T自运营 | I82: 4 | J82: 羚牛100辆18T | K82: 2026-04-01 | L82: 2026-04-30 | M82: 30 | N82: 6000 | O82: 9.9 | P82: 9.9 | Q82: 0 | R82: 0.17 | S82: 未达标 | T82: 进行中 | U82: 2026-01-05
A83: 粤A08796F | B83: 2026 | C83: 4 | D83: 业务二部 | E83: 刘念念 | F83: 嘉兴智奇供应链管理有限公司 | G83: LNZLHT 20260413001 | H83: 嘉兴智奇租赁现代18T*4 | I83: 4 | J83: 羚牛100辆18T | K83: 2026-04-19 | L83: 2026-04-30 | M83: 12 | N83: 2400 | O83: 1022.1 | P83: 1022.1 | Q83: 0 | R83: 42.59 | S83: 未达标 | T83: 进行中 | U83: 2026-04-19
A84: 粤A08875F | B84: 2026 | C84: 4 | D84: 业务二部 | E84: 刘念念 | F84: 嘉兴港区韵达快递有限公司新仓分理部 | G84: LNZLHT 20251202001 | H84: 新仓港区韵达快递租赁18T*1 | I84: 4 | J84: 羚牛100辆18T | K84: 2026-04-01 | L84: 2026-04-30 | M84: 30 | N84: 6000 | O84: 2462.6 | P84: 2462.6 | Q84: 0 | R84: 41.04 | S84: 未达标 | T84: 进行中 | U84: 2026-01-16
A85: 粤A09209F | B85: 2026 | C85: 4 | D85: 业务二部 | E85: 刘念念 | F85: 嘉兴智奇供应链管理有限公司 | G85: 20260105 | H85: 嘉兴智奇18T自运营 | I85: 4 | J85: 羚牛100辆18T | K85: 2026-04-01 | L85: 2026-04-30 | M85: 30 | N85: 6000 | O85: 11767.1 | P85: 11767.1 | Q85: 0 | R85: 196.12 | S85: 达标 | T85: 进行中 | U85: 2026-03-25
A86: 粤A09620F | B86: 2026 | C86: 4 | D86: 业务二部 | E86: 刘念念 | F86: 桐乡市丰韵快递有限责任公司 | G86: LNZLHT 20260104002 | H86: 桐乡韵达租赁18T*10 | I86: 4 | J86: 羚牛100辆18T | K86: 2026-04-01 | L86: 2026-04-30 | M86: 30 | N86: 6000 | O86: 2469.8 | P86: 2469.8 | Q86: 0 | R86: 41.16 | S86: 未达标 | T86: 进行中 | U86: 2026-01-16
A87: 粤A09635F | B87: 2026 | C87: 4 | D87: 业务二部 | E87: 刘念念 | F87: 嘉兴智奇供应链管理有限公司 | G87: 20260105 | H87: 嘉兴智奇18T自运营 | I87: 4 | J87: 羚牛100辆18T | K87: 2026-04-01 | L87: 2026-04-30 | M87: 30 | N87: 6000 | O87: 12603.5 | P87: 12603.5 | Q87: 0 | R87: 210.06 | S87: 达标 | T87: 进行中 | U87: 2026-03-22
A88: 粤AFB2237 | B88: 2026 | C88: 4 | D88: 业务二部 | E88: 刘念念 | F88: 浙江洋开供应链管理有限公司 | G88: 20250815001 | H88: 万维自运营业务4.5T*15 | I88: 2 | J88: 交投190辆4.5T冷链车 | K88: 2026-04-01 | L88: 2026-04-30 | M88: 30 | N88: 3000 | O88: 3959 | P88: 3959 | Q88: 0 | R88: 131.97 | S88: 达标 | T88: 进行中 | U88: 2025-09-23
A89: 粤AFH3525 | B89: 2026 | C89: 4 | D89: 业务二部 | E89: 刘念念 | F89: 桐乡市丰韵快递有限责任公司 | G89: LNZLHT 20260104001 | H89: 桐乡韵达租赁4.5T*10 | I89: 5 | J89: 恒运50辆4.5T普货 | K89: 2026-04-13 | L89: 2026-04-30 | M89: 18 | N89: 3000 | O89: 691.9 | P89: 691.9 | Q89: 0 | R89: 23.06 | S89: 未达标 | T89: 进行中 | U89: 2026-04-13
A90: 粤AGE4862 | B90: 2026 | C90: 4 | D90: 业务二部 | E90: 刘念念 | F90: 嘉兴市豪瑞贸易有限公司 | G90: LNZLHT 20250630001 | H90: 嘉兴豪瑞租赁4.5T*1 | I90: 1 | J90: 交投40辆4.5T普货 | K90: 2026-04-01 | L90: 2026-04-20 | M90: 20 | N90: 2000 | O90: 283 | P90: 283 | Q90: 0 | R90: 14.15 | S90: 未达标 | T90: 已完成 | U90: 2025-07-22
A91: 粤AGE5480 | B91: 2026 | C91: 4 | D91: 业务二部 | E91: 刘念念 | F91: 嘉兴港区众通快递有限公司 | G91: LNZLHT 20241205001 | H91: 嘉兴港区众通18T租赁 | I91: 1 | J91: 交投40辆4.5T普货 | K91: 2026-04-01 | L91: 2026-04-30 | M91: 30 | N91: 3000 | O91: 2118.6 | P91: 2118.6 | Q91: 0 | R91: 70.62 | S91: 未达标 | T91: 进行中 | U91: 2025-07-30
A92: 粤AGF4535 | B92: 2026 | C92: 4 | D92: 业务二部 | E92: 刘念念 | F92: 嘉兴港区韵达快递有限公司 | G92: LNZLHT 20251209001 | H92: 嘉兴韵达4.5T租赁*1 | I92: 1 | J92: 交投40辆4.5T普货 | K92: 2026-04-01 | L92: 2026-04-30 | M92: 30 | N92: 3000 | O92: 875.1 | P92: 875.1 | Q92: 0 | R92: 29.17 | S92: 未达标 | T92: 进行中 | U92: 2025-07-14
A93: 粤AGG4191 | B93: 2026 | C93: 4 | D93: 业务二部 | E93: 刘念念 | F93: 嘉兴港区众通快递有限公司 | G93: LNZLHT 20251020002 | H93: 嘉兴众通租赁4.5T*2 | I93: 1 | J93: 交投40辆4.5T普货 | K93: 2026-04-01 | L93: 2026-04-30 | M93: 30 | N93: 3000 | O93: 1616.3 | P93: 1616.3 | Q93: 0 | R93: 53.88 | S93: 未达标 | T93: 进行中 | U93: 2025-10-20
A94: 粤AGP3078 | B94: 2026 | C94: 4 | D94: 业务二部 | E94: 刘念念 | F94: 浙江洋开供应链管理有限公司 | G94: 20251215001 | H94: 古茗自运营业务 | I94: 3 | J94: 羚牛136辆4.5T冷链车 | K94: 2026-04-01 | L94: 2026-04-30 | M94: 30 | N94: 5000 | O94: 29583.3 | P94: 2426 | Q94: 27157.3 | R94: 48.52 | S94: 未达标 | T94: 进行中 | U94: 2025-12-04
A95: 粤AGP3079 | B95: 2026 | C95: 4 | D95: 业务二部 | E95: 刘念念 | F95: 浙江洋开供应链管理有限公司 | G95: 20251215001 | H95: 古茗自运营业务 | I95: 3 | J95: 羚牛136辆4.5T冷链车 | K95: 2026-04-01 | L95: 2026-04-30 | M95: 30 | N95: 5000 | O95: 26058.1 | P95: 1539.1 | Q95: 24519 | R95: 30.78 | S95: 未达标 | T95: 进行中 | U95: 2025-12-04
A96: 粤AGP3508 | B96: 2026 | C96: 4 | D96: 业务二部 | E96: 刘念念 | F96: 浙江洋开供应链管理有限公司 | G96: 20250815001 | H96: 万维自运营业务4.5T*15 | I96: 2 | J96: 交投190辆4.5T冷链车 | K96: 2026-04-01 | L96: 2026-04-30 | M96: 30 | N96: 3000 | O96: 7444.9 | P96: 7444.9 | Q96: 0 | R96: 248.16 | S96: 达标 | T96: 进行中 | U96: 2025-09-30
A97: 粤AGP3515 | B97: 2026 | C97: 4 | D97: 业务二部 | E97: 刘念念 | F97: 昆山毅通麦物流科技有限公司 | G97: LNZLHT 20251105001 | H97: 昆山毅通麦4.5T租赁*2 | I97: 3 | J97: 羚牛136辆4.5T冷链车 | K97: 2026-04-01 | L97: 2026-04-13 | M97: 13 | N97: 2166.67 | O97: 927.8 | P97: 95.5 | Q97: 832.3 | R97: 4.41 | S97: 未达标 | T97: 已完成 | U97: 2025-11-05
A98: 粤AGP3607 | B98: 2026 | C98: 4 | D98: 业务二部 | E98: 刘念念 | F98: 浙江洋开供应链管理有限公司 | G98: 20251215001 | H98: 古茗自运营业务 | I98: 3 | J98: 羚牛136辆4.5T冷链车 | K98: 2026-04-01 | L98: 2026-04-30 | M98: 30 | N98: 5000 | O98: 31808.4 | P98: 1911.3 | Q98: 29897.1 | R98: 38.23 | S98: 未达标 | T98: 进行中 | U98: 2025-12-04
A99: 粤AGP3609 | B99: 2026 | C99: 4 | D99: 业务二部 | E99: 刘念念 | F99: 嘉兴吉时物流有限公司 | G99: LNZLHT 20260305002 | H99: 嘉兴吉时物流租赁4.5T*1 | I99: 3 | J99: 羚牛136辆4.5T冷链车 | K99: 2026-04-01 | L99: 2026-04-30 | M99: 30 | N99: 5000 | O99: 8068.2 | P99: 8068.2 | Q99: 0 | R99: 161.36 | S99: 达标 | T99: 进行中 | U99: 2026-03-18
A100: 粤AGP3612 | B100: 2026 | C100: 4 | D100: 业务二部 | E100: 刘念念 | F100: 浙江洋开供应链管理有限公司 | G100: 20251215001 | H100: 古茗自运营业务 | I100: 3 | J100: 羚牛136辆4.5T冷链车 | K100: 2026-04-01 | L100: 2026-04-30 | M100: 30 | N100: 5000 | O100: 11796.9 | P100: 9545.3 | Q100: 2251.6 | R100: 190.91 | S100: 达标 | T100: 进行中 | U100: 2025-12-04
A101: 粤AGP3659 | B101: 2026 | C101: 4 | D101: 业务二部 | E101: 刘念念 | F101: 浙江洋开供应链管理有限公司 | G101: 20251215001 | H101: 古茗自运营业务 | I101: 3 | J101: 羚牛136辆4.5T冷链车 | K101: 2026-04-01 | L101: 2026-04-30 | M101: 30 | N101: 5000 | O101: 25376.1 | P101: 280.8 | Q101: 25095.3 | R101: 5.62 | S101: 未达标 | T101: 进行中 | U101: 2025-12-04
A102: 粤AGP3690 | B102: 2026 | C102: 4 | D102: 业务二部 | E102: 刘念念 | F102: 桐乡市丰韵快递有限责任公司 | G102: LNZLHT 20260104001 | H102: 桐乡韵达租赁4.5T*10 | I102: 3 | J102: 羚牛136辆4.5T冷链车 | K102: 2026-04-01 | L102: 2026-04-13 | M102: 13 | N102: 2166.67 | O102: 508.6 | P102: 550.9 | Q102: - | R102: 25.43 | S102: 未达标 | T102: 已完成 | U102: 2026-01-16
A103: 粤AGP3696 | B103: 2026 | C103: 4 | D103: 业务二部 | E103: 刘念念 | F103: 浙江洋开供应链管理有限公司 | G103: 20250815001 | H103: 万维自运营业务4.5T*15 | I103: 2 | J103: 交投190辆4.5T冷链车 | K103: 2026-04-01 | L103: 2026-04-30 | M103: 30 | N103: 3000 | O103: 3631.7 | P103: 3631.7 | Q103: =O103-P103 -> 0 | R103: 121.06 | S103: 达标 | T103: 进行中 | U103: 2025-09-06
A104: 粤AGP4335 | B104: 2026 | C104: 4 | D104: 业务二部 | E104: 刘念念 | F104: 昆山毅通麦物流科技有限公司 | G104: LNZLHT 20251105001 | H104: 昆山毅通麦4.5T租赁*2 | I104: 3 | J104: 羚牛136辆4.5T冷链车 | K104: 2026-04-01 | L104: 2026-04-04 | M104: 4 | N104: 666.67 | O104: 307.3 | P104: 303.7 | Q104: =O104-P104 -> 3.6 | R104: 45.55 | S104: 未达标 | T104: 已完成 | U104: 2026-01-31
A105: 粤AGP4597 | B105: 2026 | C105: 4 | D105: 业务二部 | E105: 刘念念 | F105: 平湖市易皓服装经营部 | G105: LNZLHT 20251101001 | H105: 平湖（港区京东）租赁4.5T*1 | I105: 3 | J105: 羚牛136辆4.5T冷链车 | K105: 2026-04-01 | L105: 2026-04-03 | M105: 3 | N105: 500 | O105: 54.3 | P105: 54.5 | Q105: - | R105: 10.9 | S105: 未达标 | T105: 已完成 | U105: 2025-11-03
A106: 粤AGP5378 | B106: 2026 | C106: 4 | D106: 业务二部 | E106: 刘念念 | F106: 浙江洋开供应链管理有限公司 | G106: 20250815001 | H106: 万维自运营业务4.5T*15 | I106: 2 | J106: 交投190辆4.5T冷链车 | K106: 2026-04-01 | L106: 2026-04-30 | M106: 30 | N106: 3000 | O106: 4548.6 | P106: 4548.6 | Q106: =O106-P106 -> 0 | R106: 151.62 | S106: 达标 | T106: 进行中 | U106: 2025-10-14
A107: 粤AGP5379 | B107: 2026 | C107: 4 | D107: 业务二部 | E107: 刘念念 | F107: 浙江洋开供应链管理有限公司 | G107: 20251215001 | H107: 古茗自运营业务 | I107: 3 | J107: 羚牛136辆4.5T冷链车 | K107: 2026-04-01 | L107: 2026-04-30 | M107: 30 | N107: 5000 | O107: 11001.7 | P107: 8365 | Q107: 2636.7 | R107: 167.3 | S107: 达标 | T107: 进行中 | U107: 2025-12-04
A108: 粤AGP5615 | B108: 2026 | C108: 4 | D108: 业务二部 | E108: 刘念念 | F108: 嘉兴坤鑫物流有限公司 | G108: LNZLHT 20260305001 | H108: 嘉兴坤鑫租赁4.5T*2 | I108: 3 | J108: 羚牛136辆4.5T冷链车 | K108: 2026-04-01 | L108: 2026-04-30 | M108: 30 | N108: 5000 | O108: 8051.9 | P108: 8051.9 | Q108: 0 | R108: 161.04 | S108: 达标 | T108: 进行中 | U108: 2026-03-13
A109: 粤AGP5622 | B109: 2026 | C109: 4 | D109: 业务二部 | E109: 刘念念 | F109: 浙江洋开供应链管理有限公司 | G109: 20250815001 | H109: 万维自运营业务4.5T*15 | I109: 3 | J109: 羚牛136辆4.5T冷链车 | K109: 2026-04-01 | L109: 2026-04-30 | M109: 30 | N109: 5000 | O109: 7437.9 | P109: 3471 | Q109: 3966.9 | R109: 69.42 | S109: 未达标 | T109: 进行中 | U109: 2025-12-21
A110: 粤AGP5769 | B110: 2026 | C110: 4 | D110: 业务二部 | E110: 刘念念 | F110: 昆山毅通麦物流科技有限公司 | G110: LNZLHT20250926001- | H110: 昆山毅通麦4.5T租赁*8 | I110: 3 | J110: 羚牛136辆4.5T冷链车 | K110: 2026-04-01 | L110: 2026-04-30 | M110: 30 | N110: 5000 | O110: 15581.3 | P110: 15377.2 | Q110: 204.1 | R110: 307.54 | S110: 达标 | T110: 已完成 | U110: 2026-01-31
A111: 粤AGP7026 | B111: 2026 | C111: 4 | D111: 业务二部 | E111: 刘念念 | F111: 浙江洋开供应链管理有限公司 | G111: 20250815001 | H111: 万维自运营业务4.5T*15 | I111: 3 | J111: 羚牛136辆4.5T冷链车 | K111: 2026-04-01 | L111: 2026-04-30 | M111: 30 | N111: 5000 | O111: 27211.9 | P111: 1823.4 | Q111: 25388.5 | R111: 36.47 | S111: 未达标 | T111: 进行中 | U111: 2025-12-01
A112: 粤AGP9735 | B112: 2026 | C112: 4 | D112: 业务二部 | E112: 刘念念 | F112: 浙江洋开供应链管理有限公司 | G112: 20250815001 | H112: 万维自运营业务4.5T*15 | I112: 3 | J112: 羚牛136辆4.5T冷链车 | K112: 2026-04-01 | L112: 2026-04-30 | M112: 30 | N112: 5000 | O112: 7867.8 | P112: 7867.8 | Q112: 0 | R112: 157.36 | S112: 达标 | T112: 进行中 | U112: 2025-12-02
A113: 粤AGP9782 | B113: 2026 | C113: 4 | D113: 业务二部 | E113: 刘念念 | F113: 昆山毅通麦物流科技有限公司 | G113: LNZLHT20250926001- | H113: 昆山毅通麦4.5T租赁*8 | I113: 3 | J113: 羚牛136辆4.5T冷链车 | K113: 2026-04-01 | L113: 2026-04-30 | M113: 30 | N113: 5000 | O113: 0.5 | P113: 0.5 | Q113: 0 | R113: 0.01 | S113: 未达标 | T113: 进行中 | U113: 2025-12-08
A114: 粤AGP9819 | B114: 2026 | C114: 4 | D114: 业务二部 | E114: 刘念念 | F114: 桐乡市丰韵快递有限责任公司 | G114: LNZLHT 20260104001 | H114: 桐乡韵达租赁4.5T*10 | I114: 2 | J114: 交投190辆4.5T冷链车 | K114: 2026-04-01 | L114: 2026-04-30 | M114: 30 | N114: 3000 | O114: 2213.7 | P114: 2213.7 | Q114: 0 | R114: 73.79 | S114: 未达标 | T114: 进行中 | U114: 2026-01-16
A115: 粤AGP9835 | B115: 2026 | C115: 4 | D115: 业务二部 | E115: 刘念念 | F115: 浙江洋开供应链管理有限公司 | G115: 20250815001 | H115: 万维自运营业务4.5T*15 | I115: 2 | J115: 交投190辆4.5T冷链车 | K115: 2026-04-01 | L115: 2026-04-30 | M115: 30 | N115: 3000 | O115: 6595.3 | P115: 6595.3 | Q115: 0 | R115: 219.84 | S115: 达标 | T115: 进行中 | U115: 2025-10-14
A116: 粤AGQ5838 | B116: 2026 | C116: 4 | D116: 业务二部 | E116: 刘念念 | F116: 嘉兴市双瑜食品有限公司 | G116: LNZLHT 20260324001 | H116: 嘉兴双瑜租赁4.5T*1 | I116: 2 | J116: 交投190辆4.5T冷链车 | K116: 2026-04-01 | L116: 2026-04-30 | M116: 30 | N116: 3000 | O116: 5664.3 | P116: 5664.3 | Q116: 0 | R116: 188.81 | S116: 达标 | T116: 进行中 | U116: 2026-03-24
A117: 粤AGR0798 | B117: 2026 | C117: 4 | D117: 业务二部 | E117: 刘念念 | F117: 浙江洋开供应链管理有限公司 | G117: 20250815001 | H117: 万维自运营业务4.5T*15 | I117: 2 | J117: 交投190辆4.5T冷链车 | K117: 2026-04-01 | L117: 2026-04-30 | M117: 30 | N117: 3000 | O117: 2262.9 | P117: 2262.9 | Q117: 0 | R117: 75.43 | S117: 未达标 | T117: 进行中 | U117: 2025-09-06
A118: 粤AGR2818 | B118: 2026 | C118: 4 | D118: 业务二部 | E118: 刘念念 | F118: 浙江洋开供应链管理有限公司 | G118: 20250815001 | H118: 万维自运营业务4.5T*15 | I118: 2 | J118: 交投190辆4.5T冷链车 | K118: 2026-04-01 | L118: 2026-04-30 | M118: 30 | N118: 3000 | O118: 3503 | P118: 3503 | Q118: 0 | R118: 116.77 | S118: 达标 | T118: 进行中 | U118: 2025-09-02
A119: 粤AGR5050 | B119: 2026 | C119: 4 | D119: 业务二部 | E119: 刘念念 | F119: 浙江洋开供应链管理有限公司 | G119: 20250815001 | H119: 万维自运营业务4.5T*15 | I119: 2 | J119: 交投190辆4.5T冷链车 | K119: 2026-04-01 | L119: 2026-04-30 | M119: 30 | N119: 3000 | O119: 4692.8 | P119: 4692.8 | Q119: 0 | R119: 156.43 | S119: 达标 | T119: 进行中 | U119: 2025-12-12
A120: 粤AGR5055 | B120: 2026 | C120: 4 | D120: 业务二部 | E120: 刘念念 | F120: 浙江洋开供应链管理有限公司 | G120: 20250815001 | H120: 万维自运营业务4.5T*15 | I120: 2 | J120: 交投190辆4.5T冷链车 | K120: 2026-04-01 | L120: 2026-04-30 | M120: 30 | N120: 3000 | O120: 6010 | P120: 6010 | Q120: 0 | R120: 200.33 | S120: 达标 | T120: 进行中 | U120: 2025-09-06
A121: 粤AGR5547 | B121: 2026 | C121: 4 | D121: 业务二部 | E121: 刘念念 | F121: 浙江洋开供应链管理有限公司 | G121: 20250815001 | H121: 万维自运营业务4.5T*15 | I121: 2 | J121: 交投190辆4.5T冷链车 | K121: 2026-04-01 | L121: 2026-04-30 | M121: 30 | N121: 3000 | O121: 4466.7 | P121: 4466.7 | Q121: 0 | R121: 148.89 | S121: 达标 | T121: 进行中 | U121: 2025-09-03
A122: 粤AGR7791 | B122: 2026 | C122: 4 | D122: 业务二部 | E122: 刘念念 | F122: 浙江洋开供应链管理有限公司 | G122: 20250815001 | H122: 万维自运营业务4.5T*15 | I122: 2 | J122: 交投190辆4.5T冷链车 | K122: 2026-04-01 | L122: 2026-04-30 | M122: 30 | N122: 3000 | O122: 2877.6 | P122: 2877.6 | Q122: 0 | R122: 95.92 | S122: 未达标 | T122: 进行中 | U122: 2025-09-06
A123: 粤AGR8506 | B123: 2026 | C123: 4 | D123: 业务二部 | E123: 刘念念 | F123: 浙江洋开供应链管理有限公司 | G123: 20250815001 | H123: 万维自运营业务4.5T*15 | I123: 2 | J123: 交投190辆4.5T冷链车 | K123: 2026-04-01 | L123: 2026-04-30 | M123: 30 | N123: 3000 | O123: 2934.1 | P123: 2934.1 | Q123: 0 | R123: 97.8 | S123: 未达标 | T123: 进行中 | U123: 2025-09-06
A124: 粤AGR8531 | B124: 2026 | C124: 4 | D124: 业务二部 | E124: 刘念念 | F124: 浙江洋开供应链管理有限公司 | G124: 20251215001 | H124: 古茗自运营业务 | I124: 2 | J124: 交投190辆4.5T冷链车 | K124: 2026-04-01 | L124: 2026-04-30 | M124: 30 | N124: 3000 | O124: 7966.1 | P124: 7966.1 | Q124: 0 | R124: 265.54 | S124: 达标 | T124: 进行中 | U124: 2026-03-05
A125: 粤AGR9882 | B125: 2026 | C125: 4 | D125: 业务二部 | E125: 刘念念 | F125: 浙江洋开供应链管理有限公司 | G125: 20250815001 | H125: 万维自运营业务4.5T*15 | I125: 2 | J125: 交投190辆4.5T冷链车 | K125: 2026-04-11 | L125: 2026-04-30 | M125: 20 | N125: 2000 | O125: 3034.1 | P125: 3034.1 | Q125: 0 | R125: 151.71 | S125: 达标 | T125: 进行中 | U125: 2026-04-11
A126: 粤AFF7936 | B126: 2026 | C126: 4 | D126: 业务二部 | E126: 谯云 | F126: 上海明纳物流有限公司 | G126: 20251127001 | H126: 常熟明纳自运营项目 | I126: 5 | J126: 恒运50辆4.5T普货 | K126: 2026-04-03 | L126: 2026-04-30 | M126: 28 | N126: 4666.67 | O126: 1624.5 | P126: 1624.5 | Q126: 0 | R126: 34.81 | S126: 未达标 | T126: 进行中 | U126: 2026-04-03
A127: 粤AFH3525 | B127: 2026 | C127: 4 | D127: 业务二部 | E127: 谯云 | F127: 上海明纳物流有限公司 | G127: 20251127001 | H127: 常熟明纳自运营项目 | I127: 5 | J127: 恒运50辆4.5T普货 | K127: 2026-04-04 | L127: 2026-04-13 | M127: 10 | N127: 1666.67 | O127: 1953 | P127: 1953 | Q127: 0 | R127: 117.18 | S127: 达标 | T127: 已完成 | U127: 2026-04-04
A128: 粤AFM6602 | B128: 2026 | C128: 4 | D128: 业务二部 | E128: 谯云 | F128: 上海明纳物流有限公司 | G128: 20251127001 | H128: 常熟明纳自运营项目 | I128: 5 | J128: 恒运50辆4.5T普货 | K128: 2026-04-07 | L128: 2026-04-27 | M128: 21 | N128: 3500 | O128: 2115.9 | P128: 2115.9 | Q128: 0 | R128: 60.45 | S128: 未达标 | T128: 已完成 | U128: 2026-04-07
A129: 粤AFN0065 | B129: 2026 | C129: 4 | D129: 业务二部 | E129: 谯云 | F129: 上海明纳物流有限公司 | G129: 20251127001 | H129: 常熟明纳自运营项目 | I129: 5 | J129: 恒运50辆4.5T普货 | K129: 2026-04-07 | L129: 2026-04-30 | M129: 24 | N129: 4000 | O129: 1151.1 | P129: 1151.1 | Q129: 0 | R129: 28.78 | S129: 未达标 | T129: 进行中 | U129: 2026-04-07
A130: 粤AFN1863 | B130: 2026 | C130: 4 | D130: 业务二部 | E130: 谯云 | F130: 上海明纳物流有限公司 | G130: 20251127001 | H130: 常熟明纳自运营项目 | I130: 5 | J130: 恒运50辆4.5T普货 | K130: 2026-04-01 | L130: 2026-04-30 | M130: 30 | N130: 5000 | O130: 5559.4 | P130: 5559.4 | Q130: 0 | R130: 111.19 | S130: 达标 | T130: 进行中 | U130: 2026-03-26
A131: 粤AFN3997 | B131: 2026 | C131: 4 | D131: 业务二部 | E131: 谯云 | F131: 上海明纳物流有限公司 | G131: 20251127001 | H131: 常熟明纳自运营项目 | I131: 5 | J131: 恒运50辆4.5T普货 | K131: 2026-04-04 | L131: 2026-04-30 | M131: 27 | N131: 4500 | O131: 3524.8 | P131: 3524.8 | Q131: 0 | R131: 78.33 | S131: 未达标 | T131: 进行中 | U131: 2026-04-04
A132: 粤AFQ7882 | B132: 2026 | C132: 4 | D132: 业务二部 | E132: 谯云 | F132: 上海明纳物流有限公司 | G132: 20251127001 | H132: 常熟明纳自运营项目 | I132: 5 | J132: 恒运50辆4.5T普货 | K132: 2026-04-01 | L132: 2026-04-30 | M132: 30 | N132: 5000 | O132: 5422.3 | P132: 5422.3 | Q132: 0 | R132: 108.45 | S132: 达标 | T132: 进行中 | U132: 2026-03-31
A133: 粤AFQ8013 | B133: 2026 | C133: 4 | D133: 业务二部 | E133: 谯云 | F133: 上海明纳物流有限公司 | G133: 20251127001 | H133: 常熟明纳自运营项目 | I133: 5 | J133: 恒运50辆4.5T普货 | K133: 2026-04-04 | L133: 2026-04-30 | M133: 27 | N133: 4500 | O133: 1713.6 | P133: 1713.6 | Q133: 0 | R133: 38.08 | S133: 未达标 | T133: 进行中 | U133: 2026-04-04
A134: 粤AG15568 | B134: 2026 | C134: 4 | D134: 业务二部 | E134: 谯云 | F134: 上海明纳物流有限公司 | G134: 20251127001 | H134: 常熟明纳自运营项目 | I134: 5 | J134: 恒运50辆4.5T普货 | K134: 2026-04-01 | L134: 2026-04-30 | M134: 30 | N134: 5000 | O134: 2402.43 | P134: 2402.43 | Q134: 0 | R134: 0 | S134: 未达标 | T134: 进行中 | U134: 2026-04-01
A135: 粤AG18285 | B135: 2026 | C135: 4 | D135: 业务二部 | E135: 谯云 | F135: 上海明纳物流有限公司 | G135: 20251127001 | H135: 常熟明纳自运营项目 | I135: 5 | J135: 恒运50辆4.5T普货 | K135: 2026-04-07 | L135: 2026-04-30 | M135: 24 | N135: 4000 | O135: 312.4 | P135: 312.4 | Q135: 0 | R135: 7.81 | S135: 未达标 | T135: 进行中 | U135: 2026-04-07
A136: 粤AG18312 | B136: 2026 | C136: 4 | D136: 业务二部 | E136: 谯云 | F136: 上海明纳物流有限公司 | G136: 20251127001 | H136: 常熟明纳自运营项目 | I136: 5 | J136: 恒运50辆4.5T普货 | K136: 2026-04-07 | L136: 2026-04-30 | M136: 24 | N136: 4000 | O136: 1526.7 | P136: 1526.7 | Q136: 0 | R136: 38.17 | S136: 未达标 | T136: 进行中 | U136: 2026-04-07
A137: 粤AG37790 | B137: 2026 | C137: 4 | D137: 业务二部 | E137: 谯云 | F137: 上海明纳物流有限公司 | G137: 20251127001 | H137: 常熟明纳自运营项目 | I137: 5 | J137: 恒运50辆4.5T普货 | K137: 2026-04-07 | L137: 2026-04-30 | M137: 24 | N137: 4000 | O137: 43.4 | P137: 43.4 | Q137: 0 | R137: 1.08 | S137: 未达标 | T137: 已完成 | U137: 2026-04-07
A138: 粤AG37862 | B138: 2026 | C138: 4 | D138: 业务二部 | E138: 谯云 | F138: 上海明纳物流有限公司 | G138: 20251127001 | H138: 常熟明纳自运营项目 | I138: 5 | J138: 恒运50辆4.5T普货 | K138: 2026-04-07 | L138: 2026-04-30 | M138: 24 | N138: 4000 | O138: 2699.6 | P138: 2699.6 | Q138: 0 | R138: 67.49 | S138: 未达标 | T138: 已完成 | U138: 2026-04-07
A139: 粤AG57311 | B139: 2026 | C139: 4 | D139: 业务二部 | E139: 谯云 | F139: 上海明纳物流有限公司 | G139: 20251127001 | H139: 常熟明纳自运营项目 | I139: 5 | J139: 恒运50辆4.5T普货 | K139: 2026-04-01 | L139: 2026-04-30 | M139: 30 | N139: 5000 | O139: 6063 | P139: 6063 | Q139: 0 | R139: 121.26 | S139: 达标 | T139: 已完成 | U139: 2026-03-26
A140: 粤AGP3038 | B140: 2026 | C140: 4 | D140: 业务二部 | E140: 谯云 | F140: 无锡双庙运输有限公司 | G140: LNZLHT 20251217001 | H140: 无锡双庙租赁4.5T* | I140: 2 | J140: 交投190辆4.5T冷链车 | K140: 2026-04-01 | L140: 2026-04-30 | M140: 30 | N140: 3000 | O140: 3541 | P140: 3541 | Q140: 0 | R140: 118.03 | S140: 达标 | T140: 进行中 | U140: 2025-12-01
A141: 粤AGP3506 | B141: 2026 | C141: 4 | D141: 业务二部 | E141: 谯云 | F141: 上海明纳物流有限公司 | G141: 20251127001 | H141: 常熟明纳自运营项目 | I141: 3 | J141: 羚牛136辆4.5T冷链车 | K141: 2026-04-07 | L141: 2026-04-30 | M141: 24 | N141: 4000 | O141: 19006.7 | P141: 4245.6 | Q141: 14761.1 | R141: 106.14 | S141: 达标 | T141: 进行中 | U141: 2026-04-07
A142: 粤AGP4597 | B142: 2026 | C142: 4 | D142: 业务二部 | E142: 谯云 | F142: 上海明纳物流有限公司 | G142: 20251127001 | H142: 常熟明纳自运营项目 | I142: 3 | J142: 羚牛136辆4.5T冷链车 | K142: 2026-04-04 | L142: 2026-04-30 | M142: 27 | N142: 4500 | O142: 22352.4 | P142: 2304.4 | Q142: 20048 | R142: 51.21 | S142: 未达标 | T142: 进行中 | U142: 2026-04-04
A143: 粤AGP4623 | B143: 2026 | C143: 4 | D143: 业务二部 | E143: 谯云 | F143: 上海明纳物流有限公司 | G143: 20251127001 | H143: 常熟明纳自运营项目 | I143: 3 | J143: 羚牛136辆4.5T冷链车 | K143: 2026-04-03 | L143: 2026-04-30 | M143: 28 | N143: 4666.67 | O143: 7672.6 | P143: 7672.6 | Q143: 0 | R143: 164.41 | S143: 达标 | T143: 进行中 | U143: 2026-04-03
A144: 粤AGP5159 | B144: 2026 | C144: 4 | D144: 业务二部 | E144: 谯云 | F144: 无锡双庙运输有限公司 | G144: LNZLHT 20251217001 | H144: 无锡双庙租赁4.5T* | I144: 2 | J144: 交投190辆4.5T冷链车 | K144: 2026-04-01 | L144: 2026-04-30 | M144: 30 | N144: 3000 | O144: 1198.5 | P144: 1198.5 | Q144: 0 | R144: 39.95 | S144: 未达标 | T144: 进行中 | U144: 2025-12-01
A145: 粤AGP5710 | B145: 2026 | C145: 4 | D145: 业务二部 | E145: 谯云 | F145: 上海明纳物流有限公司 | G145: 20251127001 | H145: 常熟明纳自运营项目 | I145: 3 | J145: 羚牛136辆4.5T冷链车 | K145: 2026-04-03 | L145: 2026-04-30 | M145: 28 | N145: 4666.67 | O145: 7091.4 | P145: 7091.4 | Q145: 0 | R145: 151.96 | S145: 达标 | T145: 进行中 | U145: 2026-04-03
A146: 粤AGP5760 | B146: 2026 | C146: 4 | D146: 业务二部 | E146: 谯云 | F146: 上海明纳物流有限公司 | G146: 20251127001 | H146: 常熟明纳自运营项目 | I146: 3 | J146: 羚牛136辆4.5T冷链车 | K146: 2026-04-07 | L146: 2026-04-30 | M146: 24 | N146: 4000 | O146: 6559 | P146: 5828.4 | Q146: 730.6 | R146: 145.71 | S146: 达标 | T146: 进行中 | U146: 2026-04-07
A147: 粤AGP5796 | B147: 2026 | C147: 4 | D147: 业务二部 | E147: 谯云 | F147: 上海明纳物流有限公司 | G147: 20251127001 | H147: 常熟明纳自运营项目 | I147: 2 | J147: 交投190辆4.5T冷链车 | K147: 2026-04-15 | L147: 2026-04-30 | M147: 16 | N147: 1600 | O147: 4403.2 | P147: 4403.2 | Q147: 0 | R147: 275.2 | S147: 达标 | T147: 进行中 | U147: 2026-04-15
A148: 粤AGP7047 | B148: 2026 | C148: 4 | D148: 业务二部 | E148: 谯云 | F148: 上海明纳物流有限公司 | G148: 20251127001 | H148: 常熟明纳自运营项目 | I148: 3 | J148: 羚牛136辆4.5T冷链车 | K148: 2026-04-03 | L148: 2026-04-30 | M148: 28 | N148: 4666.67 | O148: 9280.9 | P148: 9280.9 | Q148: 0 | R148: 198.88 | S148: 达标 | T148: 进行中 | U148: 2026-04-03
A149: 粤AGP9337 | B149: 2026 | C149: 4 | D149: 业务二部 | E149: 谯云 | F149: 无锡双庙运输有限公司 | G149: LNZLHT 20251217001 | H149: 无锡双庙租赁4.5T* | I149: 2 | J149: 交投190辆4.5T冷链车 | K149: 2026-04-01 | L149: 2026-04-30 | M149: 30 | N149: 3000 | O149: 2622.1 | P149: 2622.1 | Q149: 0 | R149: 87.4 | S149: 未达标 | T149: 进行中 | U149: 2025-12-01
A150: 粤AGP9707 | B150: 2026 | C150: 4 | D150: 业务二部 | E150: 谯云 | F150: 上海明纳物流有限公司 | G150: 20251127001 | H150: 常熟明纳自运营项目 | I150: 3 | J150: 羚牛136辆4.5T冷链车 | K150: 2026-04-07 | L150: 2026-04-30 | M150: 24 | N150: 4000 | O150: 7560 | P150: 7560 | Q150: 0 | R150: 189 | S150: 达标 | T150: 进行中 | U150: 2026-04-07
A151: 粤AGP9721 | B151: 2026 | C151: 4 | D151: 业务二部 | E151: 谯云 | F151: 上海明纳物流有限公司 | G151: 20251127001 | H151: 常熟明纳自运营项目 | I151: 3 | J151: 羚牛136辆4.5T冷链车 | K151: 2026-04-01 | L151: 2026-04-30 | M151: 30 | N151: 5000 | O151: 8439.3 | P151: 8439.3 | Q151: 0 | R151: 168.79 | S151: 达标 | T151: 进行中 | U151: 2026-03-25
A152: 粤AGP9789 | B152: 2026 | C152: 4 | D152: 业务二部 | E152: 谯云 | F152: 无锡双庙运输有限公司 | G152: LNZLHT 20251217001 | H152: 无锡双庙租赁4.5T* | I152: 2 | J152: 交投190辆4.5T冷链车 | K152: 2026-04-01 | L152: 2026-04-30 | M152: 30 | N152: 3000 | O152: 3806.6 | P152: 3806.6 | Q152: 0 | R152: 126.89 | S152: 达标 | T152: 进行中 | U152: 2025-12-01
A153: 粤AGQ0178 | B153: 2026 | C153: 4 | D153: 业务二部 | E153: 谯云 | F153: 上海明纳物流有限公司 | G153: 20251127001 | H153: 常熟明纳自运营项目 | I153: 2 | J153: 交投190辆4.5T冷链车 | K153: 2026-04-01 | L153: 2026-04-30 | M153: 30 | N153: 3000 | O153: 3398.8 | P153: 3398.8 | Q153: 0 | R153: 113.29 | S153: 达标 | T153: 进行中 | U153: 2026-03-23
A154: 粤AGR5090 | B154: 2026 | C154: 4 | D154: 业务二部 | E154: 谯云 | F154: 无锡双庙运输有限公司 | G154: LNZLHT 20251217001 | H154: 无锡双庙租赁4.5T* | I154: 2 | J154: 交投190辆4.5T冷链车 | K154: 2026-04-01 | L154: 2026-04-30 | M154: 30 | N154: 3000 | O154: 2106.2 | P154: 2106.2 | Q154: 0 | R154: 70.21 | S154: 未达标 | T154: 进行中 | U154: 2025-12-01
A155: 粤AGR9769 | B155: 2026 | C155: 4 | D155: 业务二部 | E155: 谯云 | F155: 上海明纳物流有限公司 | G155: 20251127001 | H155: 常熟明纳自运营项目 | I155: 2 | J155: 交投190辆4.5T冷链车 | K155: 2026-04-01 | L155: 2026-04-30 | M155: 30 | N155: 3000 | O155: 4098 | P155: 4098 | Q155: 0 | R155: 136.6 | S155: 达标 | T155: 进行中 | U155: 2026-03-26
A156: 粤A02058F | B156: 2026 | C156: 4 | D156: 业务二部 | E156: 赵连飞 | F156: 嘉兴市嘉顺物流有限公司 | G156: 20260325001 | H156: 嘉顺自运营18T*6 | I156: 4 | J156: 羚牛100辆18T | K156: 2026-04-01 | L156: 2026-04-30 | M156: 30 | N156: 6000 | O156: 2871.8 | P156: 2871.8 | Q156: 0 | R156: 47.86 | S156: 未达标 | T156: 进行中 | U156: 2026-04-01
A157: 粤A02509F | B157: 2026 | C157: 4 | D157: 业务二部 | E157: 赵连飞 | F157: 嘉兴市嘉顺物流有限公司 | G157: 20260325001 | H157: 嘉顺自运营18T*6 | I157: 4 | J157: 羚牛100辆18T | K157: 2026-04-01 | L157: 2026-04-30 | M157: 30 | N157: 6000 | O157: 3416.9 | P157: 3416.9 | Q157: 0 | R157: 56.95 | S157: 未达标 | T157: 进行中 | U157: 2026-03-30
A158: 粤A06158F | B158: 2026 | C158: 4 | D158: 业务二部 | E158: 赵连飞 | F158: 嘉兴市嘉顺物流有限公司 | G158: 20260325001 | H158: 嘉顺自运营18T*6 | I158: 4 | J158: 羚牛100辆18T | K158: 2026-04-01 | L158: 2026-04-30 | M158: 30 | N158: 6000 | O158: 8577.3 | P158: 8577.3 | Q158: 0 | R158: 142.95 | S158: 达标 | T158: 进行中 | U158: 2026-04-01
A159: 粤A06271F | B159: 2026 | C159: 4 | D159: 业务二部 | E159: 赵连飞 | F159: 嘉兴市嘉顺物流有限公司 | G159: 20260325001 | H159: 嘉顺自运营18T*6 | I159: 4 | J159: 羚牛100辆18T | K159: 2026-04-01 | L159: 2026-04-30 | M159: 30 | N159: 6000 | O159: 8374.6 | P159: 8374.6 | Q159: 0 | R159: 139.58 | S159: 达标 | T159: 进行中 | U159: 2026-03-26
A160: 粤A06619F | B160: 2026 | C160: 4 | D160: 业务二部 | E160: 赵连飞 | F160: 嘉兴市嘉顺物流有限公司 | G160: 20260325001 | H160: 嘉顺自运营18T*6 | I160: 4 | J160: 羚牛100辆18T | K160: 2026-04-03 | L160: 2026-04-30 | M160: 28 | N160: 5600 | O160: 7403 | P160: 7403 | Q160: 0 | R160: 132.2 | S160: 达标 | T160: 进行中 | U160: 2026-04-03
A161: 粤A08796F | B161: 2026 | C161: 4 | D161: 业务二部 | E161: 赵连飞 | F161: 嘉兴市嘉顺物流有限公司 | G161: 20260325001 | H161: 嘉顺自运营18T*6 | I161: 4 | J161: 羚牛100辆18T | K161: 2026-04-01 | L161: 2026-04-19 | M161: 19 | N161: 3800 | O161: 2506.9 | P161: 2506.9 | Q161: 0 | R161: 65.97 | S161: 未达标 | T161: 已完成 | U161: 2026-03-30
A162: 粤AGP3625 | B162: 2026 | C162: 4 | D162: 业务二部 | E162: 赵连飞 | F162: 嘉兴市飞宇物流有限公司 | G162: LNZLHT 20251028001 | H162: 嘉兴飞宇租赁4.5T*4 | I162: 3 | J162: 羚牛136辆4.5T冷链车 | K162: 2026-04-12 | L162: 2026-04-30 | M162: 19 | N162: 3166.67 | O162: 9182.6 | P162: 8442.9 | Q162: 739.7 | R162: 266.62 | S162: 达标 | T162: 进行中 | U162: 2026-04-12
A163: 粤AGP4583 | B163: 2026 | C163: 4 | D163: 业务二部 | E163: 赵连飞 | F163: 上海子初供应链管理有限公司 | G163: LNZLHT 20260423001 | H163: 上海子初租赁4.5T*4 | I163: 3 | J163: 羚牛136辆4.5T冷链车 | K163: 2026-04-26 | L163: 2026-04-30 | M163: 5 | N163: 833.33 | O163: 1279.5 | P163: 604.4 | Q163: 675.1 | R163: 72.53 | S163: 未达标 | T163: 进行中 | U163: 2026-04-26
A164: 粤AGP4599 | B164: 2026 | C164: 4 | D164: 业务二部 | E164: 赵连飞 | F164: 嘉兴市飞宇物流有限公司 | G164: LNZLHT 20251028001 | H164: 嘉兴飞宇租赁4.5T*4 | I164: 3 | J164: 羚牛136辆4.5T冷链车 | K164: 2026-04-01 | L164: 2026-04-30 | M164: 30 | N164: 5000 | O164: 10445.2 | P164: 10445.2 | Q164: 0 | R164: 208.9 | S164: 达标 | T164: 进行中 | U164: 2026-02-26
A165: 粤AGP5691 | B165: 2026 | C165: 4 | D165: 业务二部 | E165: 赵连飞 | F165: 嘉兴市飞宇物流有限公司 | G165: LNZLHT 20251028001 | H165: 嘉兴飞宇租赁4.5T*4 | I165: 3 | J165: 羚牛136辆4.5T冷链车 | K165: 2026-04-01 | L165: 2026-04-30 | M165: 30 | N165: 5000 | O165: 11825.5 | P165: 11825.5 | Q165: 0 | R165: 236.51 | S165: 达标 | T165: 进行中 | U165: 2026-02-26
A166: 粤AGP5712 | B166: 2026 | C166: 4 | D166: 业务二部 | E166: 赵连飞 | F166: 上海子初供应链管理有限公司 | G166: LNZLHT 20260423001 | H166: 上海子初租赁4.5T*4 | I166: 3 | J166: 羚牛136辆4.5T冷链车 | K166: 2026-04-26 | L166: 2026-04-30 | M166: 5 | N166: 833.33 | O166: 1290.7 | P166: 773.2 | Q166: 517.5 | R166: 92.78 | S166: 未达标 | T166: 进行中 | U166: 2026-04-26
A167: 粤AGP5763 | B167: 2026 | C167: 4 | D167: 业务二部 | E167: 赵连飞 | F167: 嘉兴市飞宇物流有限公司 | G167: LNZLHT 20251028001 | H167: 嘉兴飞宇租赁4.5T*4 | I167: 3 | J167: 羚牛136辆4.5T冷链车 | K167: 2026-04-01 | L167: 2026-04-12 | M167: 12 | N167: 2000 | O167: 20.5 | P167: 20.7 | Q167: - | R167: 1.03 | S167: 未达标 | T167: 已完成 | U167: 2026-02-25
A168: 粤AGP6679 | B168: 2026 | C168: 4 | D168: 业务二部 | E168: 赵连飞 | F168: 范兵 | G168: LNZLHT 20260309001 | H168: 范兵租赁4.5T*1 | I168: 2 | J168: 交投190辆4.5T冷链车 | K168: 2026-04-01 | L168: 2026-04-11 | M168: 11 | N168: 1100 | O168: 1709.1 | P168: 1709.1 | Q168: =O168-P168 -> 0 | R168: 155.37 | S168: 达标 | T168: 已完成 | U168: 2026-03-09
A169: 粤AGP9331 | B169: 2026 | C169: 4 | D169: 业务二部 | E169: 赵连飞 | F169: 范兵 | G169: LNZLHT 20260309001 | H169: 范兵租赁4.5T*1 | I169: 2 | J169: 交投190辆4.5T冷链车 | K169: 2026-04-11 | L169: 2026-04-30 | M169: 20 | N169: 2000 | O169: 3837.2 | P169: 3837.2 | Q169: 0 | R169: 191.86 | S169: 达标 | T169: 进行中 | U169: 2026-04-11
A170: 粤AGP9331 | B170: 2026 | C170: 4 | D170: 业务二部 | E170: 赵连飞 | F170: 嘉兴市嘉顺物流有限公司 | G170: LNZLHT202602280001 | H170: 嘉顺物流租赁4.5T*3 | I170: 2 | J170: 交投190辆4.5T冷链车 | K170: 2026-04-01 | L170: 2026-04-07 | M170: 7 | N170: 700 | O170: 0.3 | P170: 0.3 | Q170: 0 | R170: 0.04 | S170: 未达标 | T170: 已完成 | U170: 2026-03-04
A171: 粤AGP9713 | B171: 2026 | C171: 4 | D171: 业务二部 | E171: 赵连飞 | F171: 嘉兴市飞宇物流有限公司 | G171: LNZLHT 20251028001 | H171: 嘉兴飞宇租赁4.5T*4 | I171: 3 | J171: 羚牛136辆4.5T冷链车 | K171: 2026-04-01 | L171: 2026-04-30 | M171: 30 | N171: 5000 | O171: 10324.6 | P171: 10324.6 | Q171: 0 | R171: 206.49 | S171: 达标 | T171: 进行中 | U171: 2026-02-12
A172: 粤AGP9759 | B172: 2026 | C172: 4 | D172: 业务二部 | E172: 赵连飞 | F172: 上海子初供应链管理有限公司 | G172: LNZLHT 20260423001 | H172: 上海子初租赁4.5T*4 | I172: 3 | J172: 羚牛136辆4.5T冷链车 | K172: 2026-04-26 | L172: 2026-04-30 | M172: 5 | N172: 833.33 | O172: 1038.5 | P172: 168.2 | Q172: 870.3 | R172: 20.18 | S172: 未达标 | T172: 进行中 | U172: 2026-04-26
A173: 粤AGR8539 | B173: 2026 | C173: 4 | D173: 业务二部 | E173: 赵连飞 | F173: 嘉兴市飞宇物流有限公司 | G173: 202603091331000327332 | H173: 飞宇临时备用车4.5T*1 | I173: 2 | J173: 交投190辆4.5T冷链车 | K173: 2026-04-01 | L173: 2026-04-30 | M173: 30 | N173: 3000 | O173: 5812.1 | P173: 5812.1 | Q173: 0 | R173: 193.74 | S173: 达标 | T173: 进行中 | U173: 2026-03-27
A174: 粤AGR9882 | B174: 2026 | C174: 4 | D174: 业务二部 | E174: 赵连飞 | F174: 嘉兴市嘉顺物流有限公司 | G174: LNZLHT202601080001 | H174: 嘉兴嘉顺物流租赁4.5T*1 | I174: 2 | J174: 交投190辆4.5T冷链车 | K174: 2026-04-01 | L174: 2026-04-05 | M174: 5 | N174: 500 | O174: 10.9 | P174: 10.9 | Q174: 0 | R174: 2.18 | S174: 未达标 | T174: 已完成 | U174: 2026-01-12
A175: 粤AFM6602 | B175: 2026 | C175: 4 | D175: 业务二部 | E175: 董剑煜 | F175: 杭州冠泽物流有限公司 | G175: LNZLHT 20260423002 | H175: 杭州冠泽租赁4.5T*1 | I175: 5 | J175: 恒运50辆4.5T普货 | K175: 2026-04-27 | L175: 2026-04-30 | M175: 4 | N175: 666.67 | O175: 180.3 | P175: 180.3 | Q175: 0 | R175: 27.04 | S175: 未达标 | T175: 进行中 | U175: 2026-04-27
A176: 粤AG37790 | B176: 2026 | C176: 4 | D176: 业务二部 | E176: 董剑煜 | F176: 扬州力骏物流有限公司 | G176: LNZLHT 20260421001 | H176: 扬州力骏租赁4.5T*2 | I176: 5 | J176: 恒运50辆4.5T普货 | K176: 2026-04-30 | L176: 2026-04-30 | M176: 1 | N176: 166.67 | O176: 38.5 | P176: 38.5 | Q176: 0 | R176: 23.1 | S176: 未达标 | T176: 进行中 | U176: 2026-04-30
A177: 粤AG37862 | B177: 2026 | C177: 4 | D177: 业务二部 | E177: 董剑煜 | F177: 扬州力骏物流有限公司 | G177: LNZLHT 20260421001 | H177: 扬州力骏租赁4.5T*2 | I177: 5 | J177: 恒运50辆4.5T普货 | K177: 2026-04-30 | L177: 2026-04-30 | M177: 1 | N177: 166.67 | O177: 69.5 | P177: 69.5 | Q177: 0 | R177: 41.7 | S177: 未达标 | T177: 进行中 | U177: 2026-04-30
A178: 粤AG57311 | B178: 2026 | C178: 4 | D178: 业务二部 | E178: 董剑煜 | F178: 上海岚通国际物流有限公司 | G178: LNZLHT 20260429002 | H178: 上海岚通国际租赁4.5T*1 | I178: 5 | J178: 恒运50辆4.5T普货 | K178: 2026-04-30 | L178: 2026-04-30 | M178: 1 | N178: 166.67 | O178: 43.1 | P178: 43.1 | Q178: 0 | R178: 25.86 | S178: 未达标 | T178: 进行中 | U178: 2026-04-30
A179: 粤AGE8412 | B179: 2026 | C179: 4 | D179: 业务二部 | E179: 董剑煜 | F179: 无锡铭康物流有限公司-1 | G179: 20260316001 | H179: 余姚盒马自运营4.5T*40 | I179: 1 | J179: 交投40辆4.5T普货 | K179: 2026-04-01 | L179: 2026-04-30 | M179: 30 | N179: 3000 | O179: 3789.7 | P179: 3789.7 | Q179: 0 | R179: 126.32 | S179: 达标 | T179: 进行中 | U179: 2026-03-17
A180: 粤AGE8703 | B180: 2026 | C180: 4 | D180: 业务二部 | E180: 董剑煜 | F180: 无锡铭康物流有限公司-1 | G180: 20260316001 | H180: 余姚盒马自运营4.5T*40 | I180: 1 | J180: 交投40辆4.5T普货 | K180: 2026-04-01 | L180: 2026-04-30 | M180: 30 | N180: 3000 | O180: 0 | P180: 0 | Q180: 0 | R180: 0 | S180: 未达标 | T180: 进行中 | U180: 2026-03-17
A181: 粤AGF4101 | B181: 2026 | C181: 4 | D181: 业务二部 | E181: 董剑煜 | F181: 无锡铭康物流有限公司-1 | G181: 20260316001 | H181: 余姚盒马自运营4.5T*40 | I181: 1 | J181: 交投40辆4.5T普货 | K181: 2026-04-01 | L181: 2026-04-30 | M181: 30 | N181: 3000 | O181: 4286.1 | P181: 4286.1 | Q181: 0 | R181: 142.87 | S181: 达标 | T181: 进行中 | U181: 2026-03-17
A182: 粤AGF4707 | B182: 2026 | C182: 4 | D182: 业务二部 | E182: 董剑煜 | F182: 无锡铭康物流有限公司-1 | G182: 20260316001 | H182: 余姚盒马自运营4.5T*40 | I182: 1 | J182: 交投40辆4.5T普货 | K182: 2026-04-01 | L182: 2026-04-30 | M182: 30 | N182: 3000 | O182: 0 | P182: 0 | Q182: 0 | R182: 0 | S182: 未达标 | T182: 进行中 | U182: 2026-03-17
A183: 粤AGG3490 | B183: 2026 | C183: 4 | D183: 业务二部 | E183: 董剑煜 | F183: 无锡铭康物流有限公司-1 | G183: 20260316001 | H183: 余姚盒马自运营4.5T*40 | I183: 1 | J183: 交投40辆4.5T普货 | K183: 2026-04-01 | L183: 2026-04-30 | M183: 30 | N183: 3000 | O183: 168.4 | P183: 168.4 | Q183: 0 | R183: 5.61 | S183: 未达标 | T183: 进行中 | U183: 2026-03-17
A184: 粤AGP2033 | B184: 2026 | C184: 4 | D184: 业务二部 | E184: 董剑煜 | F184: 无锡铭康物流有限公司 | G184: 20260119001 | H184: 杭州盒马自运营4.5T*10 | I184: 2 | J184: 交投190辆4.5T冷链车 | K184: 2026-04-01 | L184: 2026-04-30 | M184: 30 | N184: 3000 | O184: 5612.1 | P184: 5612.1 | Q184: 0 | R184: 187.07 | S184: 达标 | T184: 进行中 | U184: 2026-03-03
A185: 粤AGP3069 | B185: 2026 | C185: 4 | D185: 业务二部 | E185: 董剑煜 | F185: 无锡铭康物流有限公司-1 | G185: 20260316001 | H185: 余姚盒马自运营4.5T*40 | I185: 2 | J185: 交投190辆4.5T冷链车 | K185: 2026-04-01 | L185: 2026-04-30 | M185: 30 | N185: 3000 | O185: 1605.3 | P185: 1605.3 | Q185: 0 | R185: 53.51 | S185: 未达标 | T185: 进行中 | U185: 2026-03-17
A186: 粤AGP3080 | B186: 2026 | C186: 4 | D186: 业务二部 | E186: 董剑煜 | F186: 无锡铭康物流有限公司-1 | G186: 20260316001 | H186: 余姚盒马自运营4.5T*40 | I186: 2 | J186: 交投190辆4.5T冷链车 | K186: 2026-04-01 | L186: 2026-04-30 | M186: 30 | N186: 3000 | O186: 7134.9 | P186: 7134.9 | Q186: 0 | R186: 237.83 | S186: 达标 | T186: 进行中 | U186: 2026-03-16
A187: 粤AGP3513 | B187: 2026 | C187: 4 | D187: 业务二部 | E187: 董剑煜 | F187: 无锡铭康物流有限公司-1 | G187: 20260316001 | H187: 余姚盒马自运营4.5T*40 | I187: 3 | J187: 羚牛136辆4.5T冷链车 | K187: 2026-04-01 | L187: 2026-04-30 | M187: 30 | N187: 5000 | O187: 24073.6 | P187: 295.1 | Q187: 23778.5 | R187: 5.9 | S187: 未达标 | T187: 进行中 | U187: 2026-03-06
A188: 粤AGP3605 | B188: 2026 | C188: 4 | D188: 业务二部 | E188: 董剑煜 | F188: 无锡铭康物流有限公司-1 | G188: 20260316001 | H188: 余姚盒马自运营4.5T*40 | I188: 3 | J188: 羚牛136辆4.5T冷链车 | K188: 2026-04-01 | L188: 2026-04-30 | M188: 30 | N188: 5000 | O188: 25236.6 | P188: 2349.7 | Q188: 22886.9 | R188: 46.99 | S188: 未达标 | T188: 进行中 | U188: 2026-03-06
A189: 粤AGP3651 | B189: 2026 | C189: 4 | D189: 业务二部 | E189: 董剑煜 | F189: 无锡铭康物流有限公司-1 | G189: 20260316001 | H189: 余姚盒马自运营4.5T*40 | I189: 3 | J189: 羚牛136辆4.5T冷链车 | K189: 2026-04-01 | L189: 2026-04-30 | M189: 30 | N189: 5000 | O189: 9575.6 | P189: 9575.6 | Q189: 0 | R189: 191.51 | S189: 达标 | T189: 进行中 | U189: 2026-03-17
A190: 粤AGP3663 | B190: 2026 | C190: 4 | D190: 业务二部 | E190: 董剑煜 | F190: 无锡铭康物流有限公司-1 | G190: 20260316001 | H190: 余姚盒马自运营4.5T*40 | I190: 2 | J190: 交投190辆4.5T冷链车 | K190: 2026-04-01 | L190: 2026-04-30 | M190: 30 | N190: 3000 | O190: 6154 | P190: 6154 | Q190: 0 | R190: 205.13 | S190: 达标 | T190: 进行中 | U190: 2026-03-14
A191: 粤AGP3669 | B191: 2026 | C191: 4 | D191: 业务二部 | E191: 董剑煜 | F191: 无锡铭康物流有限公司 | G191: 20260119001 | H191: 杭州盒马自运营4.5T*10 | I191: 2 | J191: 交投190辆4.5T冷链车 | K191: 2026-04-01 | L191: 2026-04-30 | M191: 30 | N191: 3000 | O191: 7374.6 | P191: 7374.6 | Q191: 0 | R191: 245.82 | S191: 达标 | T191: 进行中 | U191: 2026-03-02
A192: 粤AGP3676 | B192: 2026 | C192: 4 | D192: 业务二部 | E192: 董剑煜 | F192: 无锡铭康物流有限公司 | G192: 20260119001 | H192: 杭州盒马自运营4.5T*10 | I192: 2 | J192: 交投190辆4.5T冷链车 | K192: 2026-04-01 | L192: 2026-04-30 | M192: 30 | N192: 3000 | O192: 7013 | P192: 7013 | Q192: 0 | R192: 233.77 | S192: 达标 | T192: 进行中 | U192: 2026-01-20
A193: 粤AGP3695 | B193: 2026 | C193: 4 | D193: 业务二部 | E193: 董剑煜 | F193: 无锡铭康物流有限公司-1 | G193: 20260316001 | H193: 余姚盒马自运营4.5T*40 | I193: 3 | J193: 羚牛136辆4.5T冷链车 | K193: 2026-04-01 | L193: 2026-04-30 | M193: 30 | N193: 5000 | O193: 10291.1 | P193: 5708.2 | Q193: 4582.9 | R193: 114.16 | S193: 达标 | T193: 进行中 | U193: 2026-03-06
A194: 粤AGP4355 | B194: 2026 | C194: 4 | D194: 业务二部 | E194: 董剑煜 | F194: 无锡铭康物流有限公司-1 | G194: 20260316001 | H194: 余姚盒马自运营4.5T*40 | I194: 3 | J194: 羚牛136辆4.5T冷链车 | K194: 2026-04-01 | L194: 2026-04-30 | M194: 30 | N194: 5000 | O194: 10794.2 | P194: 5991.7 | Q194: 4802.5 | R194: 119.83 | S194: 达标 | T194: 进行中 | U194: 2026-03-17
A195: 粤AGP4386 | B195: 2026 | C195: 4 | D195: 业务二部 | E195: 董剑煜 | F195: 无锡铭康物流有限公司-1 | G195: 20260316001 | H195: 余姚盒马自运营4.5T*40 | I195: 3 | J195: 羚牛136辆4.5T冷链车 | K195: 2026-04-01 | L195: 2026-04-30 | M195: 30 | N195: 5000 | O195: 6399.5 | P195: 6399.5 | Q195: 0 | R195: 127.99 | S195: 达标 | T195: 进行中 | U195: 2026-03-22
A196: 粤AGP4522 | B196: 2026 | C196: 4 | D196: 业务二部 | E196: 董剑煜 | F196: 无锡铭康物流有限公司-1 | G196: 20260316001 | H196: 余姚盒马自运营4.5T*40 | I196: 3 | J196: 羚牛136辆4.5T冷链车 | K196: 2026-04-01 | L196: 2026-04-30 | M196: 30 | N196: 5000 | O196: 10685.4 | P196: 10685.4 | Q196: 0 | R196: 213.71 | S196: 达标 | T196: 进行中 | U196: 2026-03-17
A197: 粤AGP4548 | B197: 2026 | C197: 4 | D197: 业务二部 | E197: 董剑煜 | F197: 无锡铭康物流有限公司-1 | G197: 20260316001 | H197: 余姚盒马自运营4.5T*40 | I197: 3 | J197: 羚牛136辆4.5T冷链车 | K197: 2026-04-01 | L197: 2026-04-30 | M197: 30 | N197: 5000 | O197: 27364.4 | P197: 545 | Q197: 26819.4 | R197: 10.9 | S197: 未达标 | T197: 进行中 | U197: 2026-03-06
A198: 粤AGP4586 | B198: 2026 | C198: 4 | D198: 业务二部 | E198: 董剑煜 | F198: 无锡铭康物流有限公司 | G198: 20260119001 | H198: 杭州盒马自运营4.5T*10 | I198: 3 | J198: 羚牛136辆4.5T冷链车 | K198: 2026-04-01 | L198: 2026-04-30 | M198: 30 | N198: 5000 | O198: 12661.7 | P198: 12439.8 | Q198: 221.9 | R198: 248.8 | S198: 达标 | T198: 进行中 | U198: 2026-02-05
A199: 粤AGP5167 | B199: 2026 | C199: 4 | D199: 业务二部 | E199: 董剑煜 | F199: 无锡铭康物流有限公司-1 | G199: 20260316001 | H199: 余姚盒马自运营4.5T*40 | I199: 3 | J199: 羚牛136辆4.5T冷链车 | K199: 2026-04-01 | L199: 2026-04-30 | M199: 30 | N199: 5000 | O199: 9345.5 | P199: 9345.5 | Q199: 0 | R199: 186.91 | S199: 达标 | T199: 进行中 | U199: 2026-03-17
A200: 粤AGP5168 | B200: 2026 | C200: 4 | D200: 业务二部 | E200: 董剑煜 | F200: 无锡铭康物流有限公司-1 | G200: 20260316001 | H200: 余姚盒马自运营4.5T*40 | I200: 2 | J200: 交投190辆4.5T冷链车 | K200: 2026-04-01 | L200: 2026-04-30 | M200: 30 | N200: 3000 | O200: 2785.9 | P200: 2785.9 | Q200: 0 | R200: 92.86 | S200: 未达标 | T200: 进行中 | U200: 2026-03-18
... 250 more rows
